Workbook

Sheet Indhold
B3: Den samfundsfaglige Regnemaskine
B5: Indhold
B6: 1. Vandret procentuering af krydstabel
B7: 2. Lodret procentuering af krydstabel
B8: 3. Vandret procentuering af tidsserie
B9: 4. Lodret procentuering af tidsserie
B10: 5. Vandret Indekstal på tidsserie
B11: 6. Lodret Indekstal på tidsserie
B12: 7. Vandret vækstrate
B13: 8. Lodret vækstrate
B14: 9. Stikprøveusikkerhed (andele)
B15: 10. Stikprøveusikkerhed (2 andele)
B16: 11. t-test to uafhængige stikprøver
B17: 12. Chi2-test af krydstabel
B18: 13. Chi2-simulator
B19: 14. Regressionsanalyse
B20: 15. Regressionssimulator

Sheet Vandret procentuering
A1: Vandret procentuering af krydstabel (Bruges når den uafhængige variabel er placeret i forspalten se illustration). | S1: Tilbage til hovedmenuen
A3: Tabel 1: Absolutte tal
C5: Afhængig variabel
C6: Kolonne 1 | D6: Kolonne 2 | E6: Kolonne 3 | F6: Kolonne 4 | G6: Kolonne 5 | H6: Kolonne 6 | I6: Kolonne 7 | J6: Kolonne 8 | K6: Kolonne 9 | L6: Kolonne 10 | M6: Kolonne 11 | N6: Kolonne 12 | O6: Kolonne 13 | P6: Kolonne 14 | Q6: I alt
A7: Uafhængig variabel | B7: Række 1 | Q7: =SUM(C7:P7) -> 0
B8: Række 2 | Q8: 0
B9: Række 3 | Q9: 0
B10: Række 4 | Q10: 0
B11: Række 5 | Q11: 0
B12: Række 6 | Q12: 0
B13: Række 7 | Q13: 0
B14: Række 8 | Q14: 0
B15: Række 9 | Q15: 0
B16: Række 10 | Q16: 0
B17: Række 11 | Q17: 0
B18: Række 12 | Q18: 0
B19: Række 13 | Q19: 0
B20: Række 14 | Q20: 0
B21: Række 15 | Q21: 0
B22: Række 16 | Q22: 0
A26: Tabel 2: Rækkeprocenter
C28: Afhængig variabel
C29: Kolonne 1 | D29: Kolonne 2 | E29: Kolonne 3 | F29: Kolonne 4 | G29: Kolonne 5 | H29: Kolonne 6 | I29: Kolonne 7 | J29: Kolonne 8 | K29: Kolonne 9 | L29: Kolonne 10 | M29: Kolonne 11 | N29: Kolonne 12 | O29: Kolonne 13 | P29: Kolonne 14 | Q29: I alt
A30: Uafhængig variabel | B30: Række 1 | C30: =IF(C7="","",C7/$Q7*100) ->  | Q30: =SUM(C30:P30) -> 0
B31: Række 2 | C31: =IF(C8="","",C8/$Q8*100) ->  | Q31: =SUM(C31:P31) -> 0
B32: Række 3 | C32: =IF(C9="","",C9/$Q9*100) ->  | Q32: 0
B33: Række 4 | C33: =IF(C10="","",C10/$Q10*100) ->  | Q33: 0
B34: Række 5 | C34: =IF(C11="","",C11/$Q11*100) ->  | Q34: 0
B35: Række 6 | C35: =IF(C12="","",C12/$Q12*100) ->  | Q35: 0
B36: Række 7 | C36: =IF(C13="","",C13/$Q13*100) ->  | Q36: 0
B37: Række 8 | C37: =IF(C14="","",C14/$Q14*100) ->  | Q37: 0
B38: Række 9 | C38: =IF(C15="","",C15/$Q15*100) ->  | Q38: 0
B39: Række 10 | C39: =IF(C16="","",C16/$Q16*100) ->  | Q39: 0
B40: Række 11 | C40: =IF(C17="","",C17/$Q17*100) ->  | Q40: 0
B41: Række 12 | C41: =IF(C18="","",C18/$Q18*100) ->  | Q41: 0
B42: Række 13 | C42: =IF(C19="","",C19/$Q19*100) ->  | Q42: 0
B43: Række 14 | C43: =IF(C20="","",C20/$Q20*100) ->  | Q43: 0
B44: Række 15 | C44: =IF(C21="","",C21/$Q21*100) ->  | Q44: 0
B45: Række 16 | C45: =IF(C22="","",C22/$Q22*100) ->  | Q45: 0

Sheet Lodret procentuering
A1: Lodret procentuering af krydstabel (Bruges når den uafhængige variabel er placeret i hovedspalten se illustration).
K2: Tilbage til hovedmenuen
A4: Tabel 1: Absolutte tal
C6: Uafhængig variabel
C7: Kolonne 1 | D7: Kolonne 2 | E7: Kolonne 3 | F7: Kolonne 4 | G7: Kolonne 5 | H7: Kolonne 6 | I7: Kolonne 7 | J7: Kolonne 8 | K7: Kolonne 9 | L7: Kolonne 10 | M7: Kolonne 11 | N7: Kolonne 12 | O7: Kolonne 13 | P7: Kolonne 14
A8: Afhængig variabel | B8: Række 1
B9: Række 2
B10: Række 3
B11: Række 4
B12: Række 5
B13: Række 6
B14: Række 7
B15: Række 8
B16: Række 9
B17: Række 10
B18: Række 11
B19: Række 12
B20: Række 13
B21: Række 14
B22: Række 15
B23: Række 16
B24: I alt | C24: =SUM(C8:C23) -> 0 | D24: 0 | E24: 0 | F24: 0 | G24: 0 | H24: 0 | I24: 0 | J24: =SUM(J8:J23) -> 0 | K24: 0 | L24: 0 | M24: 0 | N24: 0 | O24: 0 | P24: 0
A27: Tabel 2: Rækkeprocenter
C29: Uafhængig variabel
C30: Kolonne 1 | D30: Kolonne 2 | E30: Kolonne 3 | F30: Kolonne 4 | G30: Kolonne 5 | H30: Kolonne 6 | I30: Kolonne 7 | J30: Kolonne 8 | K30: Kolonne 9 | L30: Kolonne 10 | M30: Kolonne 11 | N30: Kolonne 12 | O30: Kolonne 13 | P30: Kolonne 14
A31: Afhængig variabel | B31: Række 1 | C31: =IF(C8="","",C8/C$24*100) ->  | J31: =IF(J8="","",J8/J$24*100) -> 
B32: Række 2 | J32: =IF(J9="","",J9/J$24*100) -> 
B33: Række 3 | J33: =IF(J10="","",J10/J$24*100) -> 
B34: Række 4 | J34: =IF(J11="","",J11/J$24*100) -> 
B35: Række 5 | J35: =IF(J12="","",J12/J$24*100) -> 
B36: Række 6 | J36: =IF(J13="","",J13/J$24*100) -> 
B37: Række 7 | J37: =IF(J14="","",J14/J$24*100) -> 
B38: Række 8 | J38: =IF(J15="","",J15/J$24*100) -> 
B39: Række 9 | J39: =IF(J16="","",J16/J$24*100) -> 
B40: Række 10 | J40: =IF(J17="","",J17/J$24*100) -> 
B41: Række 11 | J41: =IF(J18="","",J18/J$24*100) -> 
B42: Række 12 | J42: =IF(J19="","",J19/J$24*100) -> 
B43: Række 13 | J43: =IF(J20="","",J20/J$24*100) -> 
B44: Række 14 | C44: =IF(C21="","",C21/C$24*100) -> 
B45: Række 15 | C45: =IF(C22="","",C22/C$24*100) -> 
B46: Række 16 | C46: =IF(C23="","",C23/C$24*100) -> 
B47: I alt | C47: =SUM(C31:C46) -> 0 | D47: =SUM(D31:D46) -> 0 | E47: 0 | F47: 0 | G47: 0 | H47: 0 | I47: 0 | J47: 0 | K47: 0 | L47: 0 | M47: 0 | N47: 0 | O47: 0 | P47: 0

Sheet Vandret procentuering (2)
A1: Vandret procentuering af tidsserie
A3: Begyndelsesår | K3: Tilbage til hovedmenuen
A5: Tabel 1: Absolutte tal
C7: Afhængig variabel
C8: Kolonne 1 | D8: Kolonne 2 | E8: Kolonne 3 | F8: Kolonne 4 | G8: Kolonne 5 | H8: Kolonne 6 | I8: Kolonne 7 | J8: Kolonne 8 | K8: Kolonne 9 | L8: Kolonne 10 | M8: Kolonne 11 | N8: Kolonne 12 | O8: Kolonne 13 | P8: Kolonne 14 | Q8: I alt
A9: Tid - Årstal | B9: =+$B$3 -> 0 | Q9: =SUM(C9:P9) -> 0
B10: =+B9+1 -> 1 | Q10: =SUM(C10:P10) -> 0
B11: =+B10+1 -> 2 | Q11: 0
B12: 3 | Q12: 0
B13: 4 | Q13: 0
B14: 5 | Q14: 0
B15: 6 | Q15: 0
B16: 7 | Q16: 0
B17: 8 | Q17: 0
B18: 9 | Q18: 0
B19: 10 | Q19: 0
B20: 11 | Q20: 0
B21: 12 | Q21: 0
B22: 13 | Q22: 0
B23: 14 | Q23: 0
B24: 15 | Q24: 0
B25: 16 | Q25: 0
A28: Tabel 2: Rækkeprocenter
C30: Afhængig variabel
C31: Kolonne 1 | D31: Kolonne 2 | E31: Kolonne 3 | F31: Kolonne 4 | G31: Kolonne 5 | H31: Kolonne 6 | I31: Kolonne 7 | J31: Kolonne 8 | K31: Kolonne 9 | L31: Kolonne 10 | M31: Kolonne 11 | N31: Kolonne 12 | O31: Kolonne 13 | P31: Kolonne 14 | Q31: I alt
A32: Tid - Årstal | B32: =+B9 -> 0 | C32: =IF(C9="","",C9/$Q9*100) ->  | D32: =IF(D9="","",D9/$Q9*100) ->  | Q32: =SUM(C32:P32) -> 0
B33: =+B10 -> 1 | C33: =IF(C10="","",C10/$Q10*100) ->  | Q33: =SUM(C33:P33) -> 0
B34: =+B11 -> 2 | C34: =IF(C11="","",C11/$Q11*100) ->  | Q34: 0
B35: 3 | C35: =IF(C12="","",C12/$Q12*100) ->  | Q35: 0
B36: 4 | C36: =IF(C13="","",C13/$Q13*100) ->  | Q36: 0
B37: 5 | C37: =IF(C14="","",C14/$Q14*100) ->  | Q37: 0
B38: 6 | C38: =IF(C15="","",C15/$Q15*100) ->  | Q38: 0
B39: 7 | C39: =IF(C16="","",C16/$Q16*100) ->  | Q39: 0
B40: 8 | C40: =IF(C17="","",C17/$Q17*100) ->  | Q40: 0
B41: 9 | C41: =IF(C18="","",C18/$Q18*100) ->  | Q41: 0
B42: 10 | C42: =IF(C19="","",C19/$Q19*100) ->  | Q42: 0
B43: 11 | C43: =IF(C20="","",C20/$Q20*100) ->  | Q43: 0
B44: 12 | C44: =IF(C21="","",C21/$Q21*100) ->  | Q44: 0
B45: 13 | C45: =IF(C22="","",C22/$Q22*100) ->  | Q45: 0
B46: 14 | C46: =IF(C23="","",C23/$Q23*100) ->  | Q46: 0
B47: 15 | C47: =IF(C24="","",C24/$Q24*100) ->  | Q47: 0
B48: 16 | C48: =IF(C25="","",C25/$Q25*100) ->  | Q48: 0

Sheet Lodret procentuering (2)
A1: Lodret procentuering af tidsserie
J2: Tilbage til hovedmenuen
A3: Begyndelsesår
A5: Tabel 1: Absolutte tal
C7: Tid - Årstal
C8: =+$B$3 -> 0 | D8: =+C8+1 -> 1 | E8: =+D8+1 -> 2 | F8: 3 | G8: 4 | H8: 5 | I8: 6 | J8: 7 | K8: 8 | L8: 9 | M8: 10 | N8: 11 | O8: 12 | P8: 13
A9: Afhængig variabel | B9: Række 1
B10: Række 2
B11: Række 3
B12: Række 4
B13: Række 5
B14: Række 6
B15: Række 7
B16: Række 8
B17: Række 9
B18: Række 10
B19: Række 11
B20: Række 12
B21: Række 13
B22: Række 14
B23: Række 15
B24: Række 16
B25: I alt | C25: =SUM(C9:C24) -> 0 | D25: =SUM(D9:D24) -> 0 | E25: 0 | F25: 0 | G25: 0 | H25: 0 | I25: 0 | J25: 0 | K25: 0 | L25: 0 | M25: 0 | N25: 0 | O25: 0 | P25: 0
A28: Tabel 2: Kolonneprocenter
C30: Tid - Årstal
C31: =+C8 -> 0 | D31: 1 | E31: 2 | F31: 3 | G31: 4 | H31: 5 | I31: 6 | J31: 7 | K31: 8 | L31: 9 | M31: 10 | N31: 11 | O31: 12 | P31: 13
A32: Afhængig variabel | B32: Række 1 | C32: =IF(C9="","",C9/C$25*100) ->  | D32: =IF(D9="","",D9/D$25*100) -> 
B33: Række 2 | C33: =IF(C10="","",C10/C$25*100) -> 
B34: Række 3 | C34: =IF(C11="","",C11/C$25*100) -> 
B35: Række 4 | C35: =IF(C12="","",C12/C$25*100) -> 
B36: Række 5 | C36: =IF(C13="","",C13/C$25*100) -> 
B37: Række 6 | C37: =IF(C14="","",C14/C$25*100) -> 
B38: Række 7 | C38: =IF(C15="","",C15/C$25*100) -> 
B39: Række 8 | C39: =IF(C16="","",C16/C$25*100) -> 
B40: Række 9 | C40: =IF(C17="","",C17/C$25*100) -> 
B41: Række 10 | C41: =IF(C18="","",C18/C$25*100) -> 
B42: Række 11 | C42: =IF(C19="","",C19/C$25*100) -> 
B43: Række 12 | C43: =IF(C20="","",C20/C$25*100) -> 
B44: Række 13 | C44: =IF(C21="","",C21/C$25*100) -> 
B45: Række 14 | C45: =IF(C22="","",C22/C$25*100) -> 
B46: Række 15 | C46: =IF(C23="","",C23/C$25*100) -> 
B47: Række 16 | C47: =IF(C24="","",C24/C$25*100) -> 
B48: I alt | C48: =SUM(C32:C47) -> 0 | D48: =SUM(D32:D47) -> 0 | E48: 0 | F48: 0 | G48: 0 | H48: 0 | I48: 0 | J48: 0 | K48: 0 | L48: 0 | M48: 0 | N48: 0 | O48: 0 | P48: 0

Sheet Vandret Indekstal
A1: Vandret indekstal på tidsserie
J2: Tilbage til hovedmenuen
A3: Tabel 1: Absolutte tal
A5: Begyndelsesår | B5: 0
C6: Tid - År
C7: =+$B$5 -> 0 | D7: =+C7+1 -> 1 | E7: =+D7+1 -> 2 | F7: 3 | G7: 4 | H7: 5 | I7: 6 | J7: 7 | K7: 8 | L7: 9 | M7: =+L7+1 -> 10 | N7: =+M7+1 -> 11 | O7: =+N7+1 -> 12 | P7: =+O7+1 -> 13
A8: Afhængig variabel | B8: Række 1
B9: Række 2
B10: Række 3
B11: Række 4
B12: Række 5
B13: Række 6
B14: Række 7
B15: Række 8
B16: Række 9
B17: Række 10
B18: Række 11
B19: Række 12
B20: Række 13
B21: Række 14
B22: Række 15
B23: Række 16
A27: Tabel 2: Indekstal (År 0=100)
C29: Tid - År
C30: =+C7 -> 0 | D30: =+D7 -> 1 | E30: 2 | F30: 3 | G30: 4 | H30: 5 | I30: 6 | J30: 7 | K30: 8 | L30: 9 | M30: 10 | N30: 11 | O30: 12 | P30: 13
A31: Afhængig variabel | B31: Række 1 | C31: =IF(C8="","",C8/$C8*100) ->  | D31: =IF(D8="","",D8/$C8*100) -> 
B32: Række 2 | C32: =IF(C9="","",C9/$C9*100) -> 
B33: Række 3 | C33: =IF(C10="","",C10/$C10*100) -> 
B34: Række 4 | C34: =IF(C11="","",C11/$C11*100) -> 
B35: Række 5 | C35: =IF(C12="","",C12/$C12*100) -> 
B36: Række 6 | C36: =IF(C13="","",C13/$C13*100) -> 
B37: Række 7 | C37: =IF(C14="","",C14/$C14*100) -> 
B38: Række 8 | C38: =IF(C15="","",C15/$C15*100) -> 
B39: Række 9 | C39: =IF(C16="","",C16/$C16*100) -> 
B40: Række 10 | C40: =IF(C17="","",C17/$C17*100) -> 
B41: Række 11 | C41: =IF(C18="","",C18/$C18*100) -> 
B42: Række 12 | C42: =IF(C19="","",C19/$C19*100) -> 
B43: Række 13 | C43: =IF(C20="","",C20/$C20*100) -> 
B44: Række 14 | C44: =IF(C21="","",C21/$C21*100) -> 
B45: Række 15 | C45: =IF(C22="","",C22/$C22*100) -> 
B46: Række 16 | C46: =IF(C23="","",C23/$C23*100) -> 

Sheet Lodret Indekstal
A1: Lodret indekstal på tidsserie
A3: Tabel 1: Absolutte tal | L3: Tilbage til hovedmenuen
A5: Begyndelsesår
C7: Afhængig variabel
C8: Kolonne 1 | D8: Kolonne 2 | E8: Kolonne 3 | F8: Kolonne 4 | G8: Kolonne 5 | H8: Kolonne 6 | I8: Kolonne 7 | J8: Kolonne 8 | K8: Kolonne 9 | L8: Kolonne 10 | M8: Kolonne 11 | N8: Kolonne 12 | O8: Kolonne 13 | P8: Kolonne 14
A9: Tid - År | B9: =+$B$5 -> 0
B10: =+B9+1 -> 1
B11: =+B10+1 -> 2
B12: 3
B13: 4
B14: 5
B15: 6
B16: 7
B17: 8
B18: 9
B19: 10
B20: 11
B21: 12
B22: 13
B23: 14
B24: 15
A28: Tabel 2: Indekstal (År 1=100)
C30: Afhængig variabel
C31: Kolonne 1 | D31: Kolonne 2 | E31: Kolonne 3 | F31: Kolonne 4 | G31: Kolonne 5 | H31: Kolonne 6 | I31: Kolonne 7 | J31: Kolonne 8 | K31: Kolonne 9 | L31: Kolonne 10 | M31: Kolonne 11 | N31: Kolonne 12 | O31: Kolonne 13 | P31: Kolonne 14
A32: Tid - År | B32: =+B9 -> 0 | C32: =IF(C9="","",C9/C$9*100) ->  | D32: =IF(D9="","",D9/D$9*100) -> 
B33: 1 | C33: =IF(C10="","",C10/C$9*100) -> 
B34: 2 | C34: =IF(C11="","",C11/C$9*100) -> 
B35: 3 | C35: =IF(C12="","",C12/C$9*100) -> 
B36: 4 | C36: =IF(C13="","",C13/C$9*100) -> 
B37: 5 | C37: =IF(C14="","",C14/C$9*100) -> 
B38: 6 | C38: =IF(C15="","",C15/C$9*100) -> 
B39: 7 | C39: =IF(C16="","",C16/C$9*100) -> 
B40: 8 | C40: =IF(C17="","",C17/C$9*100) -> 
B41: 9 | C41: =IF(C18="","",C18/C$9*100) -> 
B42: 10 | C42: =IF(C19="","",C19/C$9*100) -> 
B43: 11 | C43: =IF(C20="","",C20/C$9*100) -> 
B44: 12 | C44: =IF(C21="","",C21/C$9*100) -> 
B45: 13 | C45: =IF(C22="","",C22/C$9*100) -> 
B46: 14 | C46: =IF(C23="","",C23/C$9*100) -> 
B47: 15 | C47: =IF(C24="","",C24/C$9*100) -> 

Sheet Vandret Vækstrate
A1: Vandret Vækstrate
K3: Tilbage til hovedmenuen
A4: Tabel 1: Absolutte tal
A6: Begyndelsesår
C8: Tid - År
C9: =+$B$6 -> 0 | D9: =+C9+1 -> 1 | E9: =+D9+1 -> 2 | F9: 3 | G9: 4 | H9: 5 | I9: 6 | J9: 7 | K9: 8 | L9: 9 | M9: =+L9+1 -> 10 | N9: =+M9+1 -> 11 | O9: =+N9+1 -> 12 | P9: =+O9+1 -> 13 | Q9: =+P9+1 -> 14
A10: Afhængig variabel | B10: Række 1
B11: Række 2
B12: Række 3
B13: Række 4
B14: Række 5
B15: Række 6
B16: Række 7
B17: Række 8
B18: Række 9
B19: Række 10
B20: Række 11
B21: Række 12
B22: Række 13
B23: Række 14
B24: Række 15
B25: Række 16
A29: Tabel 2: Årlig procentvis vækstrate
C31: Tid - År
C32: =+C9 -> 0 | D32: =+D9 -> 1 | E32: 2 | F32: 3 | G32: 4 | H32: 5 | I32: 6 | J32: 7 | K32: 8 | L32: 9 | M32: 10 | N32: 11 | O32: 12 | P32: 13 | Q32: 14
A33: Afhængig variabel | B33: Række 1 | C33: -- | D33: =IF(D10="","",((D10-C10)/C10)*100) ->  | E33: =IF(E10="","",((E10-D10)/D10)*100) -> 
B34: Række 2 | C34: -- | D34: =IF(D11="","",((D11-C11)/C11)*100) -> 
B35: Række 3 | C35: --
B36: Række 4 | C36: --
B37: Række 5 | C37: --
B38: Række 6 | C38: --
B39: Række 7 | C39: --
B40: Række 8 | C40: --
B41: Række 9 | C41: --
B42: Række 10 | C42: --
B43: Række 11 | C43: --
B44: Række 12 | C44: --
B45: Række 13 | C45: --
B46: Række 14 | C46: --
B47: Række 15 | C47: --
B48: Række 16 | C48: --

Sheet Lodret Vækstrate
A1: Lodret Vækstrate
L3: Tilbage til hovedmenuen
A4: Tabel 1: Absolutte tal
A6: Begyndelsesår
C8: Afhængig variabel
C9: Kolonne 1 | D9: Kolonne 2 | E9: Kolonne 3 | F9: Kolonne 4 | G9: Kolonne 5 | H9: Kolonne 6 | I9: Kolonne 7 | J9: Kolonne 8 | K9: Kolonne 9 | L9: Kolonne 10 | M9: Kolonne 11 | N9: Kolonne 12 | O9: Kolonne 13 | P9: Kolonne 14
A10: Tid - År | B10: =+$B$6 -> 0
B11: =+B10+1 -> 1
B12: =+B11+1 -> 2
B13: 3
B14: 4
B15: 5
B16: 6
B17: 7
B18: 8
B19: 9
B20: 10
B21: 11
B22: 12
B23: 13
B24: 14
B25: 15
A29: Tabel 2: Årlig procentvis vækstrate
C31: Afhængig variabel
C32: Kolonne 1 | D32: Kolonne 2 | E32: Kolonne 3 | F32: Kolonne 4 | G32: Kolonne 5 | H32: Kolonne 6 | I32: Kolonne 7 | J32: Kolonne 8 | K32: Kolonne 9 | L32: Kolonne 10 | M32: Kolonne 11 | N32: Kolonne 12 | O32: Kolonne 13 | P32: Kolonne 14
A33: Tid - År | B33: =+B10 -> 0 | C33: -- | D33: -- | E33: -- | F33: -- | G33: -- | H33: -- | I33: -- | J33: -- | K33: -- | L33: -- | M33: -- | N33: -- | O33: -- | P33: --
B34: 1 | C34: =IF(C11="","",((C11-C10)/C10)*100) ->  | D34: =IF(D11="","",((D11-D10)/D10)*100) -> 
B35: 2 | C35: =IF(C12="","",((C12-C11)/C11)*100) -> 
B36: 3 | C36: =IF(C13="","",((C13-C12)/C12)*100) -> 
B37: 4 | C37: =IF(C14="","",((C14-C13)/C13)*100) -> 
B38: 5 | C38: =IF(C15="","",((C15-C14)/C14)*100) -> 
B39: 6 | C39: =IF(C16="","",((C16-C15)/C15)*100) -> 
B40: 7 | C40: =IF(C17="","",((C17-C16)/C16)*100) -> 
B41: 8 | C41: =IF(C18="","",((C18-C17)/C17)*100) -> 
B42: 9 | C42: =IF(C19="","",((C19-C18)/C18)*100) -> 
B43: =+B20 -> 10 | C43: =IF(C20="","",((C20-C19)/C19)*100) -> 
B44: 11 | C44: =IF(C21="","",((C21-C20)/C20)*100) -> 
B45: 12 | C45: =IF(C22="","",((C22-C21)/C21)*100) -> 
B46: 13 | C46: =IF(C23="","",((C23-C22)/C22)*100) -> 
B47: 14 | C47: =IF(C24="","",((C24-C23)/C23)*100) -> 
B48: 15 | C48: =IF(C25="","",((C25-C24)/C24)*100) -> 

Sheet Stikprøveusikkerhed Andel
A1: Konfidensinterval for populationsandel
A5: Sikkerhedsniveau | B5: 0.95 | C5: 1-a | D5: Forudsætning:
A6: Stikprøvestørrelse | B6: 1540 | C6: n | D6: Både np og n(1-p) er >= 5
A7: Stikprøveandel | B7: 0.134 | C7: p-hat | D7: =IF(MIN(B12:B13)<5,"Stikprøven er for lille :-(","Stikprøven er stor nok :-)") -> Stikprøven er stor nok :-)
A10: Konfidensinterval | B10: =B7 -> 0.134 | C10: ± | D10: =-NORMSINV((1-$B$5)/2)*SQRT(B7*(1-B7)/B6) -> 0.01701371195 | E10: = | F10: [ | G10: =B10-D10 -> 0.116986288 | H10: , | I10: =B10+D10 -> 0.151013712 | J10: ]
B12: =+B6*B7 -> 206.36
B13: =+B6*(1-B7) -> 1333.64
A15: Tilbage til hovedmenuen

Sheet Sammenlign 2 andele
A1: Sammenlign to populationsandele
A4: Data | B4: Stikprøve 1 | E4: Stikprøve 2 | G4: Forudsætning
A5: Stikprøvestørrelse | B5: 1609 | C5: n1 | D5: Stikprøvestørrelse | E5: 1540 | F5: n2 | G5: Store stikprøver
A6: #"Success" | B6: =+B5*B7 -> 326.627 | C6: x1 | D6: #"Success" | E6: =+E5*E7 -> 284.9 | F6: x2
A7: Andel | B7: 0.203 | C7: p-hat1 | D7: Andel | E7: 0.185 | F7: p-hat2
A9: Hypotese Test
A11: Ha: p1-p2= 0 | E11: 2-sidet | F11: 1-sidet venstre | G11: 1-sidet højre
A12: Null Hypotese | B12: 0 | C12: D | D12: p-værdi | E12: =2*MIN(F12,G12) -> 0.2013473906 | F12: =NORMSDIST(B13) -> 0.8993263047 | G12: =1-F12 -> 0.1006736953
A13: z | B13: =((B7-E7)-B12)/SQRT(B7*(1-B7)/B5+E7*(1-E7)/E5) -> 1.277722212
A15: Konfidensinterval
E16: Konfidensinterval på forskellen mellem to andele
A17: Sikkerhedsniveau | B17: 0.95 | C17: 1 - a | E17: =B7-E7 -> 0.018 | F17: ± | G17: =-NORMSINV((1-B17)/2)*SQRT(B7*(1-B7)/B5+E7*(1-E7)/E5) -> 0.02761112814 | H17: = | I17: [ | J17: =E17-G17 -> -0.009611128143 | K17: , | L17: =E17+G17 -> 0.04561112814 | M17: ]
A23: Tilbage til hovedmenuen

Sheet t-test to uafhængige stikprøver
A1: t-test to uafhængige stikprøver
H2: Tilbage til hovedmenuen
A3: Kontrolgruppe | B3: Forsøgsgruppe | E3: =+A3 -> Kontrolgruppe | F3: =+B3 -> Forsøgsgruppe
A4: 4 | B4: 7 | D4: Gennemsnit | E4: =AVERAGE(unpooled1) -> 6.1 | F4: =AVERAGE(unpooled2) -> 8.8
A5: 7 | B5: 10 | D5: Standardafvigelse | E5: =_xlfn.STDEV.S(unpooled1) -> 3.107338983 | F5: =_xlfn.STDEV.S(unpooled2) -> 2.780887149
A6: 7 | B6: 10 | D6: Stikprøvestørrelse | E6: =COUNTA(unpooled1) -> 10 | F6: =COUNTA(unpooled2) -> 10
A7: 2 | B7: 4
A8: 10 | B8: 12 | D8: Frihedsgrader | E8: =INT((E5^2/E6+F5^2/F6)^2/((E5^2/E6)^2/(E6-1)+(F5^2/F6)^2/(F6-1))) -> 17
A9: 7 | B9: 7 | D9: Forskel i gennemsnit | E9: =E4-F4 -> -2.7
A10: 4 | B10: 7 | D10: t-teststørrelse | E10: =(E4-F4)/(E5^2/E6+F5^2/F6)^0.5 -> -2.047518564
A11: 4 | B11: 7 | D11: Standard fejl | E11: =(E5^2/E6+F5^2/F6)^0.5 -> 1.318669363
A12: 12 | B12: 12 | D12: Kritisk værdi i t-fordelingen | E12: =_xlfn.T.INV(1-E15/2,E8) -> 2.109815578
A13: 4 | B13: 12 | D13: =CONCATENATE("Nedre grænse ",(1-E15)*100,"% KI") -> Nedre grænse 95% KI | E13: =E9-E12*E11 -> -5.482149164
D14: =CONCATENATE("Øvre grænse ",(1-E15)*100,"% KI") -> Øvre grænse 95% KI | E14: =E9+E12*E11 -> 0.08214916405
D15: Signifikans niveau | E15: 0.05
D18: To-sidet alternativ hypotese
D19: p-værdi | E19: =MIN(E25,E31)*2 -> 0.05638268879
D20: H0 | E20: μ1 -μ2 = 0
D21: HA: | E21: μ1 -μ2 ≠ 0
D22: =IF(E19<E15,CONCATENATE("Da p værdien/signifikanssandsynligheden ",ROUND(E19,4)," < ",E15, " signifikansniveauet, afviser vi nulhypotesen"),CONCATENATE("Da p værdien/signifikanssandsynligheden ",ROUND(E19,4)," > ",E15," signifikansniveauet, kan vi ikke afvise nulhypotesen.")) -> Da p værdien/signifikanssandsynligheden 0.0564 > 0.05 signifikansniveauet, kan vi ikke afvise nulhypotesen.
D24: Et-sidet alternativ hypotese
D25: p-værdi | E25: =1-E31 -> 0.9718086556
D26: H0 | E26: μ1 -μ2 ≤ 0
D27: HA: | E27: μ1 -μ2 > 0
D28: =IF(E25<E15,CONCATENATE("Da p værdien/signifikanssandsynligheden ",ROUND(E25,4)," < ",E15, " signifikansniveauet, afviser vi nulhypotesen"),CONCATENATE("Da p værdien/signifikanssandsynligheden ",ROUND(E25,4)," > ",E15," signifikansniveauet, kan vi ikke afvise nulhypotesen.")) -> Da p værdien/signifikanssandsynligheden 0.9718 > 0.05 signifikansniveauet, kan vi ikke afvise nulhypotesen.
D30: Et-sidet alternativ hypotese
D31: p-værdi | E31: =_xlfn.T.DIST(E10,E8,1) -> 0.0281913444
D32: H0 | E32: μ1 -μ2 ≥ 0
D33: HA: | E33: μ1 -μ2 < 0
D34: =IF(E31<E15,CONCATENATE("Da p værdien/signifikanssandsynligheden ",ROUND(E31,4)," < ",E15, " signifikansniveauet, afviser vi nulhypotesen"),CONCATENATE("Da p værdien/signifikanssandsynligheden ",ROUND(E31,4)," > ",E15," signifikansniveauet, kan vi ikke afvise nulhypotesen.")) -> Da p værdien/signifikanssandsynligheden 0.0282 < 0.05 signifikansniveauet, afviser vi nulhypotesen

Sheet Chi2-test af krydstabel
A1: Chi2-testværktøj
T2: Tilbage til hovedmenuen
A4: Observerede værdier
B6: C1 | C6: C2 | D6: C3 | E6: C4 | F6: C5 | G6: C6 | H6: C7 | I6: C8 | J6: C9 | K6: C10 | L6: Total
A7: R1 | L7: =SUM(B7:K7) -> 0
A8: R2 | L8: =SUM(B8:K8) -> 0
A9: R3 | L9: 0
A10: R4 | L10: 0
A11: R5 | L11: 0
A12: R6 | L12: 0
A13: R7 | L13: 0
A14: R8 | L14: 0
A15: R9 | L15: 0
A16: R10 | L16: 0
A17: R11 | L17: 0
A18: R12 | L18: 0
A19: Total | B19: =SUM(B7:B18) -> 0 | C19: =SUM(C7:C18) -> 0 | D19: 0 | E19: 0 | F19: 0 | G19: 0 | H19: 0 | I19: 0 | J19: 0 | K19: 0 | L19: 0
A21: Forventede værdier (Lyserøde celler viser, at der er for få forventede værdier. Der skal være mindst fem)
B23: C1 | C23: C2 | D23: C3 | E23: C4 | F23: C5 | G23: C6 | H23: C7 | I23: C8 | J23: C9 | K23: C10 | L23: Total
A24: R1 | B24: =IF(B7="","",+$L7*B$19/$L$19) ->  | C24: =IF(C7="","",+$L7*C$19/$L$19) ->  | L24: =SUM(B24:K24) -> 0
A25: R2 | B25: =IF(B8="","",+$L8*B$19/$L$19) ->  | L25: 0
A26: R3 | B26: =IF(B9="","",+$L9*B$19/$L$19) ->  | L26: 0
A27: R4 | B27: =IF(B10="","",+$L10*B$19/$L$19) ->  | L27: 0
A28: R5 | B28: =IF(B11="","",+$L11*B$19/$L$19) ->  | L28: 0
A29: R6 | B29: =IF(B12="","",+$L12*B$19/$L$19) ->  | L29: 0
A30: R7 | B30: =IF(B13="","",+$L13*B$19/$L$19) ->  | L30: 0
A31: R8 | B31: =IF(B14="","",+$L14*B$19/$L$19) ->  | L31: 0
A32: R9 | B32: =IF(B15="","",+$L15*B$19/$L$19) ->  | L32: 0
A33: R10 | B33: =IF(B16="","",+$L16*B$19/$L$19) ->  | L33: 0
A34: R11 | B34: =IF(B17="","",+$L17*B$19/$L$19) ->  | L34: 0
A35: R12 | B35: =IF(B18="","",+$L18*B$19/$L$19) ->  | L35: 0
A36: Total | B36: =SUM(B24:B35) -> 0 | C36: =SUM(C24:C35) -> 0 | D36: 0 | E36: 0 | F36: 0 | G36: 0 | H36: 0 | I36: 0 | J36: 0 | K36: 0 | L36: 0
A38: Chi2-beregning (Røde celler bidrager særlig meget til Chi2 - grønne mindst)
B40: C1 | C40: C2 | D40: C3 | E40: C4 | F40: C5 | G40: C6 | H40: C7 | I40: C8 | J40: C9 | K40: C10 | L40: Total
A41: R1 | B41: =IF(B7="","",(B7-B24)^2/B24) ->  | C41: =IF(C7="","",(C7-C24)^2/C24) ->  | L41: =SUM(B41:K41) -> 0
A42: R2 | B42: =IF(B8="","",(B8-B25)^2/B25) ->  | L42: =SUM(B42:K42) -> 0
A43: R3 | L43: 0
A44: R4 | L44: 0
A45: R5 | L45: 0
A46: R6 | L46: 0
A47: R7 | L47: 0
A48: R8 | L48: 0
A49: R9 | L49: 0
A50: R10 | L50: 0
A51: R11 | L51: 0
A52: R12 | L52: =SUM(B52:K52) -> 0
A53: Total | B53: =SUM(B41:B52) -> 0 | C53: =SUM(C41:C52) -> 0 | D53: 0 | E53: 0 | F53: 0 | G53: 0 | H53: 0 | I53: 0 | J53: 0 | K53: =SUM(K41:K52) -> 0 | L53: =SUM(B53:K53) -> 0
A55: Resultater:
A57: Teststørrelse | B57: =+L53 -> 0 | E57: Hypoteser:
A58: df | B58: =((COUNTA(B7:K7))-1)*(COUNTA(B7:B16)-1) -> 1 | E58: H0: Der er ingen afhængighed mellem de to variable
A59: Signifikansniveau | B59: 0.05 | E59: H1: Der er afhængighed mellem de to variable
A60: P-værdi | B60: =1-_xlfn.CHISQ.DIST(B57,B58,TRUE) -> 1
A61: Kritisk værdi | B61: =CHIINV(B59,B58) -> 3.841458821
A63: Konklusion:
A64: =IF($B$60<$B$59, "Nullhypotesen forkastes, der er afhængighed!", "Nullhypotesen forkastes ikke, der er ikke afhængighed!") -> Nullhypotesen forkastes ikke, der er ikke afhængighed!
A66: =IF($B$60<$B$59, "Er der også kausalitet/årsagssammenhæng?", "") -> 
B67: C1 | C67: C2 | D67: C3 | E67: C4 | F67: C5 | G67: C6 | H67: C7 | I67: C8 | J67: C9 | K67: C10
A68: R1 | B68: =IF(B7="","",IF(B7>B24,"Overrep.","Underrep")) ->  | C68: =IF(C7="","",IF(C7>C24,"Overrep.","Underrep")) -> 
A69: R2 | B69: =IF(B8="","",IF(B8>B25,"Overrep.","Underrep")) -> 
A70: R3 | B70: =IF(B9="","",IF(B9>B26,"Overrep.","Underrep")) -> 
A71: R4 | B71: =IF(B10="","",IF(B10>B27,"Overrep.","Underrep")) -> 
A72: R5 | B72: =IF(B11="","",IF(B11>B28,"Overrep.","Underrep")) -> 
A73: R6 | B73: =IF(B12="","",IF(B12>B29,"Overrep.","Underrep")) -> 
A74: R7 | B74: =IF(B13="","",IF(B13>B30,"Overrep.","Underrep")) -> 
A75: R8 | B75: =IF(B14="","",IF(B14>B31,"Overrep.","Underrep")) -> 
A76: R9 | B76: =IF(B15="","",IF(B15>B32,"Overrep.","Underrep")) -> 
A77: R10 | B77: =IF(B16="","",IF(B16>B33,"Overrep.","Underrep")) -> 
A78: R11 | B78: =IF(B17="","",IF(B17>B34,"Overrep.","Underrep")) -> 
A79: R12 | B79: =IF(B18="","",IF(B18>B35,"Overrep.","Underrep")) -> 

Sheet chi_help (hidden)
A3: Start | B3: 0 | C3: Kritisk værdi | D3: =ROUND('Chi2-test af krydstabel'!B61,3) -> 3.841
A4: Interval | B4: =MAX('Chi2-test af krydstabel'!$B$57,'Chi2-test af krydstabel'!$B$61)/800 -> 0.004801823526 | C4: Teststørrelse | D4: =ROUND('Chi2-test af krydstabel'!$B$57,3) -> 0
B8: Chi2 | C8: Kritisk værdi | D8: Teststørrelse
A9: =+$B$3 -> 0 | B9: =_xlfn.CHISQ.DIST(A9,'Chi2-test af krydstabel'!$B$58,FALSE) ->  | C9: =IF($A9<$D$3,IF($A10>$D$3,MAX($B$9:$B$1009),""),"") ->  | D9: =IF($A9<$D$4,IF($A10>$D$4,MAX($B$9:$B$1009),""),"") -> 
A10: =+A9+$B$4 -> 0.004801823526 | B10: =_xlfn.CHISQ.DIST(A10,'Chi2-test af krydstabel'!$B$58,FALSE) -> 5.743336545
A11: 0.009603647052 | B11: =_xlfn.CHISQ.DIST(A11,'Chi2-test af krydstabel'!$B$58,FALSE) -> 4.051413445
A12: 0.01440547058 | B12: =_xlfn.CHISQ.DIST(A12,'Chi2-test af krydstabel'!$B$58,FALSE) -> 3.30003262
A13: 0.0192072941 | B13: =_xlfn.CHISQ.DIST(A13,'Chi2-test af krydstabel'!$B$58,FALSE) -> 2.851058718
A14: 0.02400911763 | B14: =_xlfn.CHISQ.DIST(A14,'Chi2-test af krydstabel'!$B$58,FALSE) -> 2.543949304
A15: 0.02881094116 | B15: =_xlfn.CHISQ.DIST(A15,'Chi2-test af krydstabel'!$B$58,FALSE) -> 2.316728422
A16: 0.03361276468 | B16: =_xlfn.CHISQ.DIST(A16,'Chi2-test af krydstabel'!$B$58,FALSE) -> 2.139730263
A17: 0.03841458821 | B17: =_xlfn.CHISQ.DIST(A17,'Chi2-test af krydstabel'!$B$58,FALSE) -> 1.996734643
A18: 0.04321641173 | B18: =_xlfn.CHISQ.DIST(A18,'Chi2-test af krydstabel'!$B$58,FALSE) -> 1.878025085
A19: 0.04801823526 | B19: =_xlfn.CHISQ.DIST(A19,'Chi2-test af krydstabel'!$B$58,FALSE) -> 1.777378576
A20: 0.05282005878 | B20: =_xlfn.CHISQ.DIST(A20,'Chi2-test af krydstabel'!$B$58,FALSE) -> 1.690600121
A21: 0.05762188231 | B21: =_xlfn.CHISQ.DIST(A21,'Chi2-test af krydstabel'!$B$58,FALSE) -> 1.614744866
A22: 0.06242370584 | B22: =_xlfn.CHISQ.DIST(A22,'Chi2-test af krydstabel'!$B$58,FALSE) -> 1.547676387
A23: 0.06722552936 | B23: =_xlfn.CHISQ.DIST(A23,'Chi2-test af krydstabel'!$B$58,FALSE) -> 1.487801911
A24: 0.07202735289 | B24: =_xlfn.CHISQ.DIST(A24,'Chi2-test af krydstabel'!$B$58,FALSE) -> 1.433906382
A25: 0.07682917641 | B25: =_xlfn.CHISQ.DIST(A25,'Chi2-test af krydstabel'!$B$58,FALSE) -> 1.38504452
A26: 0.08163099994 | B26: =_xlfn.CHISQ.DIST(A26,'Chi2-test af krydstabel'!$B$58,FALSE) -> 1.340468341
A27: 0.08643282347 | B27: =_xlfn.CHISQ.DIST(A27,'Chi2-test af krydstabel'!$B$58,FALSE) -> 1.29957715
A28: 0.09123464699 | B28: =_xlfn.CHISQ.DIST(A28,'Chi2-test af krydstabel'!$B$58,FALSE) -> 1.261882205
A29: 0.09603647052 | B29: =_xlfn.CHISQ.DIST(A29,'Chi2-test af krydstabel'!$B$58,FALSE) -> 1.226981221
A30: 0.100838294 | B30: =_xlfn.CHISQ.DIST(A30,'Chi2-test af krydstabel'!$B$58,FALSE) -> 1.194539633
A31: 0.1056401176 | B31: =_xlfn.CHISQ.DIST(A31,'Chi2-test af krydstabel'!$B$58,FALSE) -> 1.164276597
A32: 0.1104419411 | B32: =_xlfn.CHISQ.DIST(A32,'Chi2-test af krydstabel'!$B$58,FALSE) -> 1.135954372
A33: 0.1152437646 | B33: =_xlfn.CHISQ.DIST(A33,'Chi2-test af krydstabel'!$B$58,FALSE) -> 1.109370165
A34: 0.1200455881 | B34: =_xlfn.CHISQ.DIST(A34,'Chi2-test af krydstabel'!$B$58,FALSE) -> 1.08434978
A35: 0.1248474117 | B35: =_xlfn.CHISQ.DIST(A35,'Chi2-test af krydstabel'!$B$58,FALSE) -> 1.060742631
A36: 0.1296492352 | B36: =_xlfn.CHISQ.DIST(A36,'Chi2-test af krydstabel'!$B$58,FALSE) -> 1.038417773
A37: 0.1344510587 | B37: =_xlfn.CHISQ.DIST(A37,'Chi2-test af krydstabel'!$B$58,FALSE) -> 1.017260722
A38: 0.1392528823 | B38: =_xlfn.CHISQ.DIST(A38,'Chi2-test af krydstabel'!$B$58,FALSE) -> 0.9971708862
A39: 0.1440547058 | B39: =_xlfn.CHISQ.DIST(A39,'Chi2-test af krydstabel'!$B$58,FALSE) -> 0.9780594623
A40: 0.1488565293 | B40: =_xlfn.CHISQ.DIST(A40,'Chi2-test af krydstabel'!$B$58,FALSE) -> 0.9598477181
A41: 0.1536583528 | B41: =_xlfn.CHISQ.DIST(A41,'Chi2-test af krydstabel'!$B$58,FALSE) -> 0.942465566
A42: 0.1584601764 | B42: =_xlfn.CHISQ.DIST(A42,'Chi2-test af krydstabel'!$B$58,FALSE) -> 0.9258503781
A43: 0.1632619999 | B43: =_xlfn.CHISQ.DIST(A43,'Chi2-test af krydstabel'!$B$58,FALSE) -> 0.9099459931
A44: 0.1680638234 | B44: =_xlfn.CHISQ.DIST(A44,'Chi2-test af krydstabel'!$B$58,FALSE) -> 0.8947018814
A45: 0.1728656469 | B45: =_xlfn.CHISQ.DIST(A45,'Chi2-test af krydstabel'!$B$58,FALSE) -> 0.8800724372
A46: 0.1776674705 | B46: =_xlfn.CHISQ.DIST(A46,'Chi2-test af krydstabel'!$B$58,FALSE) -> 0.8660163777
A47: 0.182469294 | B47: =_xlfn.CHISQ.DIST(A47,'Chi2-test af krydstabel'!$B$58,FALSE) -> 0.8524962283
A48: 0.1872711175 | B48: =_xlfn.CHISQ.DIST(A48,'Chi2-test af krydstabel'!$B$58,FALSE) -> 0.8394778824
A49: 0.192072941 | B49: =_xlfn.CHISQ.DIST(A49,'Chi2-test af krydstabel'!$B$58,FALSE) -> 0.82693022
A50: 0.1968747646 | B50: =_xlfn.CHISQ.DIST(A50,'Chi2-test af krydstabel'!$B$58,FALSE) -> 0.8148247799
A51: 0.2016765881 | B51: =_xlfn.CHISQ.DIST(A51,'Chi2-test af krydstabel'!$B$58,FALSE) -> 0.8031354732
A52: 0.2064784116 | B52: =_xlfn.CHISQ.DIST(A52,'Chi2-test af krydstabel'!$B$58,FALSE) -> 0.7918383347
A53: 0.2112802351 | B53: =_xlfn.CHISQ.DIST(A53,'Chi2-test af krydstabel'!$B$58,FALSE) -> 0.7809113048
A54: 0.2160820587 | B54: =_xlfn.CHISQ.DIST(A54,'Chi2-test af krydstabel'!$B$58,FALSE) -> 0.7703340389
A55: 0.2208838822 | B55: =_xlfn.CHISQ.DIST(A55,'Chi2-test af krydstabel'!$B$58,FALSE) -> 0.7600877388
A56: 0.2256857057 | B56: =_xlfn.CHISQ.DIST(A56,'Chi2-test af krydstabel'!$B$58,FALSE) -> 0.7501550047
A57: 0.2304875292 | B57: =_xlfn.CHISQ.DIST(A57,'Chi2-test af krydstabel'!$B$58,FALSE) -> 0.7405197035
A58: 0.2352893528 | B58: =_xlfn.CHISQ.DIST(A58,'Chi2-test af krydstabel'!$B$58,FALSE) -> 0.7311668527
A59: 0.2400911763 | B59: =_xlfn.CHISQ.DIST(A59,'Chi2-test af krydstabel'!$B$58,FALSE) -> 0.7220825163
A60: 0.2448929998 | B60: =_xlfn.CHISQ.DIST(A60,'Chi2-test af krydstabel'!$B$58,FALSE) -> 0.7132537128
A61: 0.2496948233 | B61: =_xlfn.CHISQ.DIST(A61,'Chi2-test af krydstabel'!$B$58,FALSE) -> 0.7046683318
A62: 0.2544966469 | B62: =_xlfn.CHISQ.DIST(A62,'Chi2-test af krydstabel'!$B$58,FALSE) -> 0.6963150609
A63: 0.2592984704 | B63: =_xlfn.CHISQ.DIST(A63,'Chi2-test af krydstabel'!$B$58,FALSE) -> 0.6881833182
A64: 0.2641002939 | B64: =_xlfn.CHISQ.DIST(A64,'Chi2-test af krydstabel'!$B$58,FALSE) -> 0.6802631933
A65: 0.2689021174 | B65: =_xlfn.CHISQ.DIST(A65,'Chi2-test af krydstabel'!$B$58,FALSE) -> 0.6725453927
A66: 0.273703941 | B66: =_xlfn.CHISQ.DIST(A66,'Chi2-test af krydstabel'!$B$58,FALSE) -> 0.6650211917
A67: 0.2785057645 | B67: =_xlfn.CHISQ.DIST(A67,'Chi2-test af krydstabel'!$B$58,FALSE) -> 0.6576823896
A68: 0.283307588 | B68: =_xlfn.CHISQ.DIST(A68,'Chi2-test af krydstabel'!$B$58,FALSE) -> 0.6505212703
A69: 0.2881094116 | B69: =_xlfn.CHISQ.DIST(A69,'Chi2-test af krydstabel'!$B$58,FALSE) -> 0.6435305656
A70: 0.2929112351 | B70: =_xlfn.CHISQ.DIST(A70,'Chi2-test af krydstabel'!$B$58,FALSE) -> 0.6367034224
A71: 0.2977130586 | B71: =_xlfn.CHISQ.DIST(A71,'Chi2-test af krydstabel'!$B$58,FALSE) -> 0.6300333723
A72: 0.3025148821 | B72: =_xlfn.CHISQ.DIST(A72,'Chi2-test af krydstabel'!$B$58,FALSE) -> 0.6235143047
A73: 0.3073167057 | B73: =_xlfn.CHISQ.DIST(A73,'Chi2-test af krydstabel'!$B$58,FALSE) -> 0.6171404411 | C73: =IF($A73<$D$3,IF($A74>$D$3,MAX($B$9:$B$1009),""),"") ->  | D73: =IF($A73<$D$4,IF($A74>$D$4,MAX($B$9:$B$1009),""),"") -> 
A74: =+A73+$B$4 -> 0.3121185292 | B74: =_xlfn.CHISQ.DIST(A74,'Chi2-test af krydstabel'!$B$58,FALSE) -> 0.6109063122
A75: 0.3169203527 | B75: =_xlfn.CHISQ.DIST(A75,'Chi2-test af krydstabel'!$B$58,FALSE) -> 0.6048067372
A76: 0.3217221762 | B76: =_xlfn.CHISQ.DIST(A76,'Chi2-test af krydstabel'!$B$58,FALSE) -> 0.5988368042
A77: 0.3265239998 | B77: =_xlfn.CHISQ.DIST(A77,'Chi2-test af krydstabel'!$B$58,FALSE) -> 0.5929918524
A78: 0.3313258233 | B78: =_xlfn.CHISQ.DIST(A78,'Chi2-test af krydstabel'!$B$58,FALSE) -> 0.5872674559
A79: 0.3361276468 | B79: =_xlfn.CHISQ.DIST(A79,'Chi2-test af krydstabel'!$B$58,FALSE) -> 0.5816594083
A80: 0.3409294703 | B80: =_xlfn.CHISQ.DIST(A80,'Chi2-test af krydstabel'!$B$58,FALSE) -> 0.5761637094
A81: 0.3457312939 | B81: =_xlfn.CHISQ.DIST(A81,'Chi2-test af krydstabel'!$B$58,FALSE) -> 0.5707765519
A82: 0.3505331174 | B82: =_xlfn.CHISQ.DIST(A82,'Chi2-test af krydstabel'!$B$58,FALSE) -> 0.5654943094
A83: 0.3553349409 | B83: =_xlfn.CHISQ.DIST(A83,'Chi2-test af krydstabel'!$B$58,FALSE) -> 0.5603135259
A84: 0.3601367644 | B84: =_xlfn.CHISQ.DIST(A84,'Chi2-test af krydstabel'!$B$58,FALSE) -> 0.5552309053
A85: 0.364938588 | B85: =_xlfn.CHISQ.DIST(A85,'Chi2-test af krydstabel'!$B$58,FALSE) -> 0.550243302
A86: 0.3697404115 | B86: =_xlfn.CHISQ.DIST(A86,'Chi2-test af krydstabel'!$B$58,FALSE) -> 0.5453477121
A87: 0.374542235 | B87: =_xlfn.CHISQ.DIST(A87,'Chi2-test af krydstabel'!$B$58,FALSE) -> 0.5405412654
A88: 0.3793440585 | B88: =_xlfn.CHISQ.DIST(A88,'Chi2-test af krydstabel'!$B$58,FALSE) -> 0.5358212176
A89: 0.3841458821 | B89: =_xlfn.CHISQ.DIST(A89,'Chi2-test af krydstabel'!$B$58,FALSE) -> 0.5311849435
A90: 0.3889477056 | B90: =_xlfn.CHISQ.DIST(A90,'Chi2-test af krydstabel'!$B$58,FALSE) -> 0.5266299299
A91: 0.3937495291 | B91: =_xlfn.CHISQ.DIST(A91,'Chi2-test af krydstabel'!$B$58,FALSE) -> 0.5221537703
A92: 0.3985513526 | B92: =_xlfn.CHISQ.DIST(A92,'Chi2-test af krydstabel'!$B$58,FALSE) -> 0.5177541582
A93: 0.4033531762 | B93: =_xlfn.CHISQ.DIST(A93,'Chi2-test af krydstabel'!$B$58,FALSE) -> 0.5134288826
A94: 0.4081549997 | B94: =_xlfn.CHISQ.DIST(A94,'Chi2-test af krydstabel'!$B$58,FALSE) -> 0.5091758222
A95: 0.4129568232 | B95: =_xlfn.CHISQ.DIST(A95,'Chi2-test af krydstabel'!$B$58,FALSE) -> 0.5049929415
A96: 0.4177586468 | B96: =_xlfn.CHISQ.DIST(A96,'Chi2-test af krydstabel'!$B$58,FALSE) -> 0.5008782858
A97: 0.4225604703 | B97: =_xlfn.CHISQ.DIST(A97,'Chi2-test af krydstabel'!$B$58,FALSE) -> 0.4968299772
A98: 0.4273622938 | B98: =_xlfn.CHISQ.DIST(A98,'Chi2-test af krydstabel'!$B$58,FALSE) -> 0.4928462109
A99: 0.4321641173 | B99: =_xlfn.CHISQ.DIST(A99,'Chi2-test af krydstabel'!$B$58,FALSE) -> 0.4889252515
A100: 0.4369659409 | B100: =_xlfn.CHISQ.DIST(A100,'Chi2-test af krydstabel'!$B$58,FALSE) -> 0.4850654295
A101: 0.4417677644 | B101: =_xlfn.CHISQ.DIST(A101,'Chi2-test af krydstabel'!$B$58,FALSE) -> 0.4812651382
A102: 0.4465695879 | B102: =_xlfn.CHISQ.DIST(A102,'Chi2-test af krydstabel'!$B$58,FALSE) -> 0.4775228305
A103: 0.4513714114 | B103: =_xlfn.CHISQ.DIST(A103,'Chi2-test af krydstabel'!$B$58,FALSE) -> 0.4738370162
A104: 0.456173235 | B104: =_xlfn.CHISQ.DIST(A104,'Chi2-test af krydstabel'!$B$58,FALSE) -> 0.4702062595
A105: 0.4609750585 | B105: =_xlfn.CHISQ.DIST(A105,'Chi2-test af krydstabel'!$B$58,FALSE) -> 0.4666291761
A106: 0.465776882 | B106: =_xlfn.CHISQ.DIST(A106,'Chi2-test af krydstabel'!$B$58,FALSE) -> 0.463104431
A107: 0.4705787055 | B107: =_xlfn.CHISQ.DIST(A107,'Chi2-test af krydstabel'!$B$58,FALSE) -> 0.4596307362
A108: 0.4753805291 | B108: =_xlfn.CHISQ.DIST(A108,'Chi2-test af krydstabel'!$B$58,FALSE) -> 0.4562068487
A109: 0.4801823526 | B109: =_xlfn.CHISQ.DIST(A109,'Chi2-test af krydstabel'!$B$58,FALSE) -> 0.4528315683
A110: 0.4849841761 | B110: =_xlfn.CHISQ.DIST(A110,'Chi2-test af krydstabel'!$B$58,FALSE) -> 0.449503736
A111: 0.4897859996 | B111: =_xlfn.CHISQ.DIST(A111,'Chi2-test af krydstabel'!$B$58,FALSE) -> 0.4462222317
A112: 0.4945878232 | B112: =_xlfn.CHISQ.DIST(A112,'Chi2-test af krydstabel'!$B$58,FALSE) -> 0.4429859731
A113: 0.4993896467 | B113: =_xlfn.CHISQ.DIST(A113,'Chi2-test af krydstabel'!$B$58,FALSE) -> 0.4397939135
A114: 0.5041914702 | B114: =_xlfn.CHISQ.DIST(A114,'Chi2-test af krydstabel'!$B$58,FALSE) -> 0.4366450409
A115: 0.5089932937 | B115: =_xlfn.CHISQ.DIST(A115,'Chi2-test af krydstabel'!$B$58,FALSE) -> 0.4335383758
A116: 0.5137951173 | B116: =_xlfn.CHISQ.DIST(A116,'Chi2-test af krydstabel'!$B$58,FALSE) -> 0.4304729706
A117: 0.5185969408 | B117: =_xlfn.CHISQ.DIST(A117,'Chi2-test af krydstabel'!$B$58,FALSE) -> 0.4274479078
A118: 0.5233987643 | B118: =_xlfn.CHISQ.DIST(A118,'Chi2-test af krydstabel'!$B$58,FALSE) -> 0.4244622988
A119: 0.5282005878 | B119: =_xlfn.CHISQ.DIST(A119,'Chi2-test af krydstabel'!$B$58,FALSE) -> 0.4215152828
A120: 0.5330024114 | B120: =_xlfn.CHISQ.DIST(A120,'Chi2-test af krydstabel'!$B$58,FALSE) -> 0.418606026
A121: 0.5378042349 | B121: =_xlfn.CHISQ.DIST(A121,'Chi2-test af krydstabel'!$B$58,FALSE) -> 0.4157337198
A122: 0.5426060584 | B122: =_xlfn.CHISQ.DIST(A122,'Chi2-test af krydstabel'!$B$58,FALSE) -> 0.4128975805
A123: 0.5474078819 | B123: =_xlfn.CHISQ.DIST(A123,'Chi2-test af krydstabel'!$B$58,FALSE) -> 0.4100968481
A124: 0.5522097055 | B124: =_xlfn.CHISQ.DIST(A124,'Chi2-test af krydstabel'!$B$58,FALSE) -> 0.407330785
A125: 0.557011529 | B125: =_xlfn.CHISQ.DIST(A125,'Chi2-test af krydstabel'!$B$58,FALSE) -> 0.4045986757
A126: 0.5618133525 | B126: =_xlfn.CHISQ.DIST(A126,'Chi2-test af krydstabel'!$B$58,FALSE) -> 0.4018998258
A127: 0.5666151761 | B127: =_xlfn.CHISQ.DIST(A127,'Chi2-test af krydstabel'!$B$58,FALSE) -> 0.399233561
A128: 0.5714169996 | B128: =_xlfn.CHISQ.DIST(A128,'Chi2-test af krydstabel'!$B$58,FALSE) -> 0.3965992264
A129: 0.5762188231 | B129: =_xlfn.CHISQ.DIST(A129,'Chi2-test af krydstabel'!$B$58,FALSE) -> 0.3939961859
A130: 0.5810206466 | B130: =_xlfn.CHISQ.DIST(A130,'Chi2-test af krydstabel'!$B$58,FALSE) -> 0.3914238216
A131: 0.5858224702 | B131: =_xlfn.CHISQ.DIST(A131,'Chi2-test af krydstabel'!$B$58,FALSE) -> 0.3888815328
A132: 0.5906242937 | B132: =_xlfn.CHISQ.DIST(A132,'Chi2-test af krydstabel'!$B$58,FALSE) -> 0.3863687357
A133: 0.5954261172 | B133: =_xlfn.CHISQ.DIST(A133,'Chi2-test af krydstabel'!$B$58,FALSE) -> 0.3838848625
A134: 0.6002279407 | B134: =_xlfn.CHISQ.DIST(A134,'Chi2-test af krydstabel'!$B$58,FALSE) -> 0.3814293611
A135: 0.6050297643 | B135: =_xlfn.CHISQ.DIST(A135,'Chi2-test af krydstabel'!$B$58,FALSE) -> 0.3790016945
A136: 0.6098315878 | B136: =_xlfn.CHISQ.DIST(A136,'Chi2-test af krydstabel'!$B$58,FALSE) -> 0.3766013401
A137: 0.6146334113 | B137: =_xlfn.CHISQ.DIST(A137,'Chi2-test af krydstabel'!$B$58,FALSE) -> 0.3742277892 | C137: =IF($A137<$D$3,IF($A138>$D$3,MAX($B$9:$B$1009),""),"") ->  | D137: =IF($A137<$D$4,IF($A138>$D$4,MAX($B$9:$B$1009),""),"") -> 
A138: =+A137+$B$4 -> 0.6194352348 | B138: =_xlfn.CHISQ.DIST(A138,'Chi2-test af krydstabel'!$B$58,FALSE) -> 0.3718805469
A139: 0.6242370584 | B139: =_xlfn.CHISQ.DIST(A139,'Chi2-test af krydstabel'!$B$58,FALSE) -> 0.369559131
A140: 0.6290388819 | B140: =_xlfn.CHISQ.DIST(A140,'Chi2-test af krydstabel'!$B$58,FALSE) -> 0.3672630722
A141: 0.6338407054 | B141: =_xlfn.CHISQ.DIST(A141,'Chi2-test af krydstabel'!$B$58,FALSE) -> 0.3649919132
A142: 0.6386425289 | B142: =_xlfn.CHISQ.DIST(A142,'Chi2-test af krydstabel'!$B$58,FALSE) -> 0.3627452086
A143: 0.6434443525 | B143: =_xlfn.CHISQ.DIST(A143,'Chi2-test af krydstabel'!$B$58,FALSE) -> 0.3605225243
A144: 0.648246176 | B144: =_xlfn.CHISQ.DIST(A144,'Chi2-test af krydstabel'!$B$58,FALSE) -> 0.3583234373
A145: 0.6530479995 | B145: =_xlfn.CHISQ.DIST(A145,'Chi2-test af krydstabel'!$B$58,FALSE) -> 0.356147535
A146: 0.657849823 | B146: =_xlfn.CHISQ.DIST(A146,'Chi2-test af krydstabel'!$B$58,FALSE) -> 0.3539944154
A147: 0.6626516466 | B147: =_xlfn.CHISQ.DIST(A147,'Chi2-test af krydstabel'!$B$58,FALSE) -> 0.3518636864
A148: 0.6674534701 | B148: =_xlfn.CHISQ.DIST(A148,'Chi2-test af krydstabel'!$B$58,FALSE) -> 0.3497549653
A149: 0.6722552936 | B149: =_xlfn.CHISQ.DIST(A149,'Chi2-test af krydstabel'!$B$58,FALSE) -> 0.3476678791
A150: 0.6770571171 | B150: =_xlfn.CHISQ.DIST(A150,'Chi2-test af krydstabel'!$B$58,FALSE) -> 0.3456020636
A151: 0.6818589407 | B151: =_xlfn.CHISQ.DIST(A151,'Chi2-test af krydstabel'!$B$58,FALSE) -> 0.3435571635
A152: 0.6866607642 | B152: =_xlfn.CHISQ.DIST(A152,'Chi2-test af krydstabel'!$B$58,FALSE) -> 0.3415328319
A153: 0.6914625877 | B153: =_xlfn.CHISQ.DIST(A153,'Chi2-test af krydstabel'!$B$58,FALSE) -> 0.3395287301
A154: 0.6962644113 | B154: =_xlfn.CHISQ.DIST(A154,'Chi2-test af krydstabel'!$B$58,FALSE) -> 0.3375445275
A155: 0.7010662348 | B155: =_xlfn.CHISQ.DIST(A155,'Chi2-test af krydstabel'!$B$58,FALSE) -> 0.3355799012
A156: 0.7058680583 | B156: =_xlfn.CHISQ.DIST(A156,'Chi2-test af krydstabel'!$B$58,FALSE) -> 0.3336345356
A157: 0.7106698818 | B157: =_xlfn.CHISQ.DIST(A157,'Chi2-test af krydstabel'!$B$58,FALSE) -> 0.3317081228
A158: 0.7154717054 | B158: =_xlfn.CHISQ.DIST(A158,'Chi2-test af krydstabel'!$B$58,FALSE) -> 0.3298003615
A159: 0.7202735289 | B159: =_xlfn.CHISQ.DIST(A159,'Chi2-test af krydstabel'!$B$58,FALSE) -> 0.3279109574
A160: 0.7250753524 | B160: =_xlfn.CHISQ.DIST(A160,'Chi2-test af krydstabel'!$B$58,FALSE) -> 0.3260396231
A161: 0.7298771759 | B161: =_xlfn.CHISQ.DIST(A161,'Chi2-test af krydstabel'!$B$58,FALSE) -> 0.3241860772
A162: 0.7346789995 | B162: =_xlfn.CHISQ.DIST(A162,'Chi2-test af krydstabel'!$B$58,FALSE) -> 0.322350045
A163: 0.739480823 | B163: =_xlfn.CHISQ.DIST(A163,'Chi2-test af krydstabel'!$B$58,FALSE) -> 0.3205312576
A164: 0.7442826465 | B164: =_xlfn.CHISQ.DIST(A164,'Chi2-test af krydstabel'!$B$58,FALSE) -> 0.318729452
A165: 0.74908447 | B165: =_xlfn.CHISQ.DIST(A165,'Chi2-test af krydstabel'!$B$58,FALSE) -> 0.3169443711
A166: 0.7538862936 | B166: =_xlfn.CHISQ.DIST(A166,'Chi2-test af krydstabel'!$B$58,FALSE) -> 0.3151757634
A167: 0.7586881171 | B167: =_xlfn.CHISQ.DIST(A167,'Chi2-test af krydstabel'!$B$58,FALSE) -> 0.3134233826
A168: 0.7634899406 | B168: =_xlfn.CHISQ.DIST(A168,'Chi2-test af krydstabel'!$B$58,FALSE) -> 0.3116869879
A169: 0.7682917641 | B169: =_xlfn.CHISQ.DIST(A169,'Chi2-test af krydstabel'!$B$58,FALSE) -> 0.3099663435
A170: 0.7730935877 | B170: =_xlfn.CHISQ.DIST(A170,'Chi2-test af krydstabel'!$B$58,FALSE) -> 0.3082612185
A171: 0.7778954112 | B171: =_xlfn.CHISQ.DIST(A171,'Chi2-test af krydstabel'!$B$58,FALSE) -> 0.306571387
A172: 0.7826972347 | B172: =_xlfn.CHISQ.DIST(A172,'Chi2-test af krydstabel'!$B$58,FALSE) -> 0.3048966278
A173: 0.7874990582 | B173: =_xlfn.CHISQ.DIST(A173,'Chi2-test af krydstabel'!$B$58,FALSE) -> 0.3032367243
A174: 0.7923008818 | B174: =_xlfn.CHISQ.DIST(A174,'Chi2-test af krydstabel'!$B$58,FALSE) -> 0.3015914642
A175: 0.7971027053 | B175: =_xlfn.CHISQ.DIST(A175,'Chi2-test af krydstabel'!$B$58,FALSE) -> 0.2999606397
A176: 0.8019045288 | B176: =_xlfn.CHISQ.DIST(A176,'Chi2-test af krydstabel'!$B$58,FALSE) -> 0.2983440471
A177: 0.8067063523 | B177: =_xlfn.CHISQ.DIST(A177,'Chi2-test af krydstabel'!$B$58,FALSE) -> 0.2967414871
A178: 0.8115081759 | B178: =_xlfn.CHISQ.DIST(A178,'Chi2-test af krydstabel'!$B$58,FALSE) -> 0.295152764
A179: 0.8163099994 | B179: =_xlfn.CHISQ.DIST(A179,'Chi2-test af krydstabel'!$B$58,FALSE) -> 0.2935776863
A180: 0.8211118229 | B180: =_xlfn.CHISQ.DIST(A180,'Chi2-test af krydstabel'!$B$58,FALSE) -> 0.2920160662
A181: 0.8259136464 | B181: =_xlfn.CHISQ.DIST(A181,'Chi2-test af krydstabel'!$B$58,FALSE) -> 0.2904677196
A182: 0.83071547 | B182: =_xlfn.CHISQ.DIST(A182,'Chi2-test af krydstabel'!$B$58,FALSE) -> 0.2889324661
A183: 0.8355172935 | B183: =_xlfn.CHISQ.DIST(A183,'Chi2-test af krydstabel'!$B$58,FALSE) -> 0.2874101287
A184: 0.840319117 | B184: =_xlfn.CHISQ.DIST(A184,'Chi2-test af krydstabel'!$B$58,FALSE) -> 0.2859005338
A185: 0.8451209406 | B185: =_xlfn.CHISQ.DIST(A185,'Chi2-test af krydstabel'!$B$58,FALSE) -> 0.2844035112
A186: 0.8499227641 | B186: =_xlfn.CHISQ.DIST(A186,'Chi2-test af krydstabel'!$B$58,FALSE) -> 0.2829188941
A187: 0.8547245876 | B187: =_xlfn.CHISQ.DIST(A187,'Chi2-test af krydstabel'!$B$58,FALSE) -> 0.2814465187
A188: 0.8595264111 | B188: =_xlfn.CHISQ.DIST(A188,'Chi2-test af krydstabel'!$B$58,FALSE) -> 0.2799862244
A189: 0.8643282347 | B189: =_xlfn.CHISQ.DIST(A189,'Chi2-test af krydstabel'!$B$58,FALSE) -> 0.2785378534
A190: 0.8691300582 | B190: =_xlfn.CHISQ.DIST(A190,'Chi2-test af krydstabel'!$B$58,FALSE) -> 0.2771012512
A191: 0.8739318817 | B191: =_xlfn.CHISQ.DIST(A191,'Chi2-test af krydstabel'!$B$58,FALSE) -> 0.2756762658
A192: 0.8787337052 | B192: =_xlfn.CHISQ.DIST(A192,'Chi2-test af krydstabel'!$B$58,FALSE) -> 0.2742627484
A193: 0.8835355288 | B193: =_xlfn.CHISQ.DIST(A193,'Chi2-test af krydstabel'!$B$58,FALSE) -> 0.2728605527
A194: 0.8883373523 | B194: =_xlfn.CHISQ.DIST(A194,'Chi2-test af krydstabel'!$B$58,FALSE) -> 0.271469535
A195: 0.8931391758 | B195: =_xlfn.CHISQ.DIST(A195,'Chi2-test af krydstabel'!$B$58,FALSE) -> 0.2700895544
A196: 0.8979409993 | B196: =_xlfn.CHISQ.DIST(A196,'Chi2-test af krydstabel'!$B$58,FALSE) -> 0.2687204725
A197: 0.9027428229 | B197: =_xlfn.CHISQ.DIST(A197,'Chi2-test af krydstabel'!$B$58,FALSE) -> 0.2673621533
A198: 0.9075446464 | B198: =_xlfn.CHISQ.DIST(A198,'Chi2-test af krydstabel'!$B$58,FALSE) -> 0.2660144634
A199: 0.9123464699 | B199: =_xlfn.CHISQ.DIST(A199,'Chi2-test af krydstabel'!$B$58,FALSE) -> 0.2646772716
A200: 0.9171482934 | B200: =_xlfn.CHISQ.DIST(A200,'Chi2-test af krydstabel'!$B$58,FALSE) -> 0.263350449
A201: 0.921950117 | B201: =_xlfn.CHISQ.DIST(A201,'Chi2-test af krydstabel'!$B$58,FALSE) -> 0.2620338692 | C201: =IF($A201<$D$3,IF($A202>$D$3,MAX($B$9:$B$1009),""),"") ->  | D201: =IF($A201<$D$4,IF($A202>$D$4,MAX($B$9:$B$1009),""),"") -> 
A202: =+A201+$B$4 -> 0.9267519405 | B202: =_xlfn.CHISQ.DIST(A202,'Chi2-test af krydstabel'!$B$58,FALSE) -> 0.2607274078
A203: 0.931553764 | B203: =_xlfn.CHISQ.DIST(A203,'Chi2-test af krydstabel'!$B$58,FALSE) -> 0.2594309426
A204: 0.9363555875 | B204: =_xlfn.CHISQ.DIST(A204,'Chi2-test af krydstabel'!$B$58,FALSE) -> 0.2581443536
A205: 0.9411574111 | B205: =_xlfn.CHISQ.DIST(A205,'Chi2-test af krydstabel'!$B$58,FALSE) -> 0.2568675228
... 804 more rows

Sheet Chi2-simulator
B2: Ønsket grad af afhængighed | C2: Meget svag | H2: Tilbage til hovedmenuen | U2: =VLOOKUP($C$2,$AB$3:$AC$6,2,FALSE) -> 2
AB3: Ingen | AC3: 1
B4: Observerede Værdier | V4: 1 | W4: 2 | X4: 3 | Y4: 4 | AB4: Meget svag | AC4: 2
C5: Meget lav | D5: Lav | E5: Høj | F5: Meget høj | G5: I alt | V5: =+V4+4 -> 5 | W5: =+W4+4 -> 6 | X5: 7 | Y5: 8 | AB5: Moderat | AC5: 3
B6: Meget lav | C6: =INDEX($V$11:$Y$26,MATCH(V4,$U$11:$U$26),MATCH($U$2,$V$10:$Y$10)) -> 107 | D6: 106 | E6: 89 | F6: 80 | G6: =SUM(C6:F6) -> 382 | V6: =+V5+4 -> 9 | W6: =+W5+4 -> 10 | X6: =+X5+4 -> 11 | Y6: =+Y5+4 -> 12 | AB6: Stærk | AC6: 4
B7: Lav | C7: 107 | D7: 107 | E7: 105 | F7: 89 | G7: =SUM(C7:F7) -> 408 | V7: 13 | W7: 14 | X7: 15 | Y7: 16
B8: Høj | C8: 90 | D8: 105 | E8: 108 | F8: 107 | G8: =SUM(C8:F8) -> 410
B9: Meget høj | C9: 80 | D9: 90 | E9: 105 | F9: 109 | G9: =SUM(C9:F9) -> 384
B10: I alt | C10: =SUM(C6:C9) -> 384 | D10: =SUM(D6:D9) -> 408 | E10: =SUM(E6:E9) -> 407 | F10: =SUM(F6:F9) -> 385 | G10: =SUM(C10:F10) -> 1584 | V10: 1 | W10: 2 | X10: 3 | Y10: 4
U11: 1 | V11: =RANDBETWEEN(108,112) -> 108 | W11: =RANDBETWEEN(107,109) -> 107 | X11: =RANDBETWEEN(110,112) -> 111 | Y11: =RANDBETWEEN(120,130) -> 120
B12: Forventede værdier | U12: 2 | V12: =RANDBETWEEN(103,107) -> 103 | W12: =RANDBETWEEN(105,107) -> 106 | X12: =RANDBETWEEN(107,109) -> 107 | Y12: =RANDBETWEEN(90,100) -> 96
C13: Meget lav | D13: Lav | E13: Høj | F13: Meget høj | G13: I alt | U13: 3 | V13: =RANDBETWEEN(98,102) -> 101 | W13: =RANDBETWEEN(89,90) -> 89 | X13: =RANDBETWEEN(89,90) -> 90 | Y13: =RANDBETWEEN(85,95) -> 94
B14: Meget lav | C14: =+$G6*C$10/$G$10 -> 92.60606061 | D14: 98.39393939 | E14: 98.15277778 | F14: 92.84722222 | G14: =SUM(C14:F14) -> 382 | U14: 4 | V14: =RANDBETWEEN(95,100) -> 95 | W14: =RANDBETWEEN(80,81) -> 80 | X14: =RANDBETWEEN(80,81) -> 81 | Y14: =RANDBETWEEN(80,90) -> 81 | AB14: 120 | AC14: 100 | AD14: 90 | AE14: 85 | AF14: =SUM(AB14:AE14) -> 395
B15: Lav | C15: 98.90909091 | D15: 105.0909091 | E15: 104.8333333 | F15: 99.16666667 | G15: =SUM(C15:F15) -> 408 | U15: 5 | V15: =RANDBETWEEN(100,110) -> 104 | W15: =RANDBETWEEN(105,107) -> 107 | X15: =RANDBETWEEN(107,109) -> 108 | Y15: =RANDBETWEEN(90,100) -> 91 | AB15: =+AC14 -> 100 | AC15: =+AB14 -> 120 | AD15: =+AC14 -> 100 | AE15: =+AD14 -> 90 | AF15: =SUM(AB15:AE15) -> 410
B16: Høj | C16: 99.39393939 | D16: 105.6060606 | E16: 105.3472222 | F16: 99.65277778 | G16: =SUM(C16:F16) -> 410 | U16: 6 | V16: =RANDBETWEEN(108,112) -> 108 | W16: =RANDBETWEEN(107,109) -> 107 | X16: =RANDBETWEEN(110,112) -> 112 | Y16: =RANDBETWEEN(120,130) -> 126 | AB16: =+AD14 -> 90 | AC16: =+AC14 -> 100 | AD16: =+AC15 -> 120 | AE16: =+AD15 -> 100 | AF16: =SUM(AB16:AE16) -> 410
B17: Meget høj | C17: 93.09090909 | D17: 98.90909091 | E17: 98.66666667 | F17: 93.33333333 | G17: =SUM(C17:F17) -> 384 | U17: 7 | V17: =RANDBETWEEN(103,107) -> 104 | W17: =RANDBETWEEN(105,107) -> 105 | X17: =RANDBETWEEN(107,109) -> 107 | Y17: =RANDBETWEEN(90,100) -> 94 | AB17: =+AE14 -> 85 | AC17: =+AE15 -> 90 | AD17: =+AC14 -> 100 | AE17: =+AD16 -> 120 | AF17: =SUM(AB17:AE17) -> 395
B18: I alt | C18: =SUM(C14:C17) -> 384 | D18: =SUM(D14:D17) -> 408 | E18: =SUM(E14:E17) -> 407 | F18: =SUM(F14:F17) -> 385 | G18: =SUM(C18:F18) -> 1584 | U18: 8 | V18: =RANDBETWEEN(98,102) -> 99 | W18: =RANDBETWEEN(89,90) -> 89 | X18: 90 | Y18: =RANDBETWEEN(85,95) -> 92 | AB18: =SUM(AB14:AB17) -> 395 | AC18: =SUM(AC14:AC17) -> 410 | AD18: =SUM(AD14:AD17) -> 410 | AE18: =SUM(AE14:AE17) -> 395 | AF18: =SUM(AB18:AE18) -> 1610
U19: 9 | V19: 98 | W19: 90 | X19: 90 | Y19: 91
B20: Chi2-værdier | U20: 10 | V20: =RANDBETWEEN(103,107) -> 107 | W20: =RANDBETWEEN(105,107) -> 105 | X20: =RANDBETWEEN(107,109) -> 109 | Y20: =RANDBETWEEN(90,100) -> 96
C21: Meget lav | D21: Lav | E21: Høj | F21: Meget høj | G21: I alt | U21: 11 | V21: =RANDBETWEEN(108,112) -> 111 | W21: =RANDBETWEEN(107,109) -> 108 | X21: =RANDBETWEEN(110,112) -> 110 | Y21: =RANDBETWEEN(120,130) -> 124
B22: Meget lav | C22: =(C6-C14)^2/C14 -> 2.237277884 | D22: 0.587964648 | E22: 0.8534994419 | F22: 1.777663509 | G22: =SUM(C22:F22) -> 5.456405482 | U22: 12 | V22: =RANDBETWEEN(103,107) -> 107 | W22: =RANDBETWEEN(105,107) -> 107 | X22: =RANDBETWEEN(105,107) -> 107 | Y22: =RANDBETWEEN(90,100) -> 98
B23: Lav | C23: 0.661848262 | D23: 0.03468071721 | E23: 0.0002649708532 | F23: 1.042296919 | G23: =SUM(C23:F23) -> 1.739090869 | U23: 13 | V23: =RANDBETWEEN(95,100) -> 100 | W23: =RANDBETWEEN(80,81) -> 80 | X23: =RANDBETWEEN(80,81) -> 81 | Y23: =RANDBETWEEN(80,90) -> 87
B24: Høj | C24: 0.887841833 | D24: 0.003478109647 | E24: 0.06680033692 | F24: 0.5416976384 | G24: =SUM(C24:F24) -> 1.499817918 | U24: 14 | V24: =RANDBETWEEN(98,102) -> 101 | W24: =RANDBETWEEN(89,90) -> 90 | X24: =RANDBETWEEN(89,90) -> 89 | Y24: =RANDBETWEEN(85,95) -> 94
B25: Meget høj | C25: 1.840909091 | D25: 0.802473262 | E25: 0.4065315315 | F25: 2.629761905 | G25: =SUM(C25:F25) -> 5.679675789 | U25: 15 | V25: =RANDBETWEEN(103,107) -> 104 | W25: =RANDBETWEEN(105,107) -> 105 | X25: =RANDBETWEEN(107,109) -> 107 | Y25: =RANDBETWEEN(90,100) -> 97
B26: I alt | C26: =SUM(C22:C25) -> 5.627877069 | D26: =SUM(D22:D25) -> 1.428596737 | E26: =SUM(E22:E25) -> 1.327096281 | F26: =SUM(F22:F25) -> 5.991419971 | G26: =SUM(C26:F26) -> 14.37499006 | U26: 16 | V26: =RANDBETWEEN(108,112) -> 108 | W26: =RANDBETWEEN(107,109) -> 109 | X26: =RANDBETWEEN(110,112) -> 111 | Y26: =RANDBETWEEN(120,130) -> 121
V27: =SUM(V11:V26) -> 1658 | W27: =SUM(W11:W26) -> 1584 | X27: =SUM(X11:X26) -> 1610 | Y27: =SUM(Y11:Y26) -> 1602
B28: Hypoteser:
B29: H0: Der er ingen afhængighed mellem de to variable
B30: H1: Der er afhængighed mellem de to variable
B32: Signifikansniveau a: | C32: 0.05
B33: Teststørrelse | C33: =+G26 -> 14.37499006
B34: Frihedsgrader | C34: =(COUNTA(C21:F21)-1)*(COUNTA(B22:B25)-1) -> 9
B35: P-værdi | C35: =CHITEST($C$6:$F$9,$C$14:$F$17) -> 0.1095974049
B37: Konklusion: | C37: =IF($C$35<$C$32, "Nullhypotesen forkastes, der er afhængighed!", "Nullhypotesen forkastes ikke, der er ikke afhængighed!") -> Nullhypotesen forkastes ikke, der er ikke afhængighed!
C39: =IF($C$35<$C$32, "Er der også kausalitet/årsagssammenhæng?", "") -> 

Sheet Regressionsanalyse
A1: Data Labels | B1: Data til x-akse | C1: Data til y-akse
B2: 1 | C2: 1 | E2: Regressionsanalyse | O2: Tilbage til hovedmenuen
B3: 2 | C3: 2
B4: 3 | C4: 3
B5: 4 | C5: 4
B6: 5 | C6: 5
B7: 6 | C7: 6
B8: 6 | C8: 6
G28: Y-akseskæring | H28: =IF(B2="","",INTERCEPT(C2:C2520,B2:B2520)) -> 0
G29: Hældningskoefficient | H29: =IF(B2="","",SLOPE(C2:C2520,B2:B2520)) -> 1
G30: R2 | H30: =IF(B2="","",RSQ(C2:C2520,B2:B2520)) -> 1 | J30: =IF(B2="","",IF($H$30>0.9,"Meget stærk samvariation",IF($H$30>0.8,"Stærk samvariation",IF($H$30>0.5,"Moderat samvariation",IF($H$30>0.3,"Svag samvariation","Ringe samvariation"))))) -> Meget stærk samvariation
J32: =IF(J30="","","Hvis der er samvariation: er der også en årsagssammenhæng?") -> Hvis der er samvariation: er der også en årsagssammenhæng?

Sheet Regressionssimulator
A1: R2-simulator
D3: Vælg den ønskede styrke ved at benytte rullefeltet i den grønne celle
A4: X | B4: Y
A5: =RANDBETWEEN(0,100) -> 74 | B5: =IF($G$6="Ingen", 'R-square_help'!A2,Regressionssimulator!A5*'R-square_help'!C2+'R-square_help'!B2) -> 82
A6: =RANDBETWEEN(0,100) -> 89 | B6: =IF($G$6="Ingen", 'R-square_help'!A3,Regressionssimulator!A6*'R-square_help'!C3+'R-square_help'!B3) -> 97 | F6: Styrke | G6: Ingen | I6: Tilbage til hovedmenuen
A7: 22 | B7: =IF($G$6="Ingen", 'R-square_help'!A4,Regressionssimulator!A7*'R-square_help'!C4+'R-square_help'!B4) -> 4
A8: 49 | B8: =IF($G$6="Ingen", 'R-square_help'!A5,Regressionssimulator!A8*'R-square_help'!C5+'R-square_help'!B5) -> 67 | F8: ="Korrelationskoefficient = "&ROUND(CORREL(A4:A104,B4:B104),3) -> Korrelationskoefficient = -0.03
A9: 33 | B9: =IF($G$6="Ingen", 'R-square_help'!A6,Regressionssimulator!A9*'R-square_help'!C6+'R-square_help'!B6) -> 73
A10: 80 | B10: =IF($G$6="Ingen", 'R-square_help'!A7,Regressionssimulator!A10*'R-square_help'!C7+'R-square_help'!B7) -> 14
A11: 79 | B11: =IF($G$6="Ingen", 'R-square_help'!A8,Regressionssimulator!A11*'R-square_help'!C8+'R-square_help'!B8) -> 96
A12: 68 | B12: =IF($G$6="Ingen", 'R-square_help'!A9,Regressionssimulator!A12*'R-square_help'!C9+'R-square_help'!B9) -> 21
A13: 30 | B13: =IF($G$6="Ingen", 'R-square_help'!A10,Regressionssimulator!A13*'R-square_help'!C10+'R-square_help'!B10) -> 45
A14: 3 | B14: =IF($G$6="Ingen", 'R-square_help'!A11,Regressionssimulator!A14*'R-square_help'!C11+'R-square_help'!B11) -> 63
A15: 66 | B15: =IF($G$6="Ingen", 'R-square_help'!A12,Regressionssimulator!A15*'R-square_help'!C12+'R-square_help'!B12) -> 8
A16: 20 | B16: =IF($G$6="Ingen", 'R-square_help'!A13,Regressionssimulator!A16*'R-square_help'!C13+'R-square_help'!B13) -> 43
A17: 36 | B17: =IF($G$6="Ingen", 'R-square_help'!A14,Regressionssimulator!A17*'R-square_help'!C14+'R-square_help'!B14) -> 95
A18: 62 | B18: =IF($G$6="Ingen", 'R-square_help'!A15,Regressionssimulator!A18*'R-square_help'!C15+'R-square_help'!B15) -> 78
A19: 86 | B19: =IF($G$6="Ingen", 'R-square_help'!A16,Regressionssimulator!A19*'R-square_help'!C16+'R-square_help'!B16) -> 94
A20: 49 | B20: =IF($G$6="Ingen", 'R-square_help'!A17,Regressionssimulator!A20*'R-square_help'!C17+'R-square_help'!B17) -> 44
A21: 13 | B21: =IF($G$6="Ingen", 'R-square_help'!A18,Regressionssimulator!A21*'R-square_help'!C18+'R-square_help'!B18) -> 51
A22: 14 | B22: =IF($G$6="Ingen", 'R-square_help'!A19,Regressionssimulator!A22*'R-square_help'!C19+'R-square_help'!B19) -> 39
A23: 72 | B23: =IF($G$6="Ingen", 'R-square_help'!A20,Regressionssimulator!A23*'R-square_help'!C20+'R-square_help'!B20) -> 11
A24: 80 | B24: =IF($G$6="Ingen", 'R-square_help'!A21,Regressionssimulator!A24*'R-square_help'!C21+'R-square_help'!B21) -> 62
A25: 91 | B25: =IF($G$6="Ingen", 'R-square_help'!A22,Regressionssimulator!A25*'R-square_help'!C22+'R-square_help'!B22) -> 0
A26: 87 | B26: =IF($G$6="Ingen", 'R-square_help'!A23,Regressionssimulator!A26*'R-square_help'!C23+'R-square_help'!B23) -> 74
A27: 69 | B27: =IF($G$6="Ingen", 'R-square_help'!A24,Regressionssimulator!A27*'R-square_help'!C24+'R-square_help'!B24) -> 18
A28: 71 | B28: =IF($G$6="Ingen", 'R-square_help'!A25,Regressionssimulator!A28*'R-square_help'!C25+'R-square_help'!B25) -> 29
A29: 53 | B29: =IF($G$6="Ingen", 'R-square_help'!A26,Regressionssimulator!A29*'R-square_help'!C26+'R-square_help'!B26) -> 16
A30: 28 | B30: =IF($G$6="Ingen", 'R-square_help'!A27,Regressionssimulator!A30*'R-square_help'!C27+'R-square_help'!B27) -> 30
A31: 1 | B31: =IF($G$6="Ingen", 'R-square_help'!A28,Regressionssimulator!A31*'R-square_help'!C28+'R-square_help'!B28) -> 78
A32: 19 | B32: =IF($G$6="Ingen", 'R-square_help'!A29,Regressionssimulator!A32*'R-square_help'!C29+'R-square_help'!B29) -> 52
A33: 34 | B33: =IF($G$6="Ingen", 'R-square_help'!A30,Regressionssimulator!A33*'R-square_help'!C30+'R-square_help'!B30) -> 92
A34: 90 | B34: =IF($G$6="Ingen", 'R-square_help'!A31,Regressionssimulator!A34*'R-square_help'!C31+'R-square_help'!B31) -> 76
A35: 1 | B35: =IF($G$6="Ingen", 'R-square_help'!A32,Regressionssimulator!A35*'R-square_help'!C32+'R-square_help'!B32) -> 43
A36: 50 | B36: =IF($G$6="Ingen", 'R-square_help'!A33,Regressionssimulator!A36*'R-square_help'!C33+'R-square_help'!B33) -> 48
A37: 12 | B37: =IF($G$6="Ingen", 'R-square_help'!A34,Regressionssimulator!A37*'R-square_help'!C34+'R-square_help'!B34) -> 49
A38: 60 | B38: =IF($G$6="Ingen", 'R-square_help'!A35,Regressionssimulator!A38*'R-square_help'!C35+'R-square_help'!B35) -> 97
A39: 4 | B39: =IF($G$6="Ingen", 'R-square_help'!A36,Regressionssimulator!A39*'R-square_help'!C36+'R-square_help'!B36) -> 70
A40: 47 | B40: =IF($G$6="Ingen", 'R-square_help'!A37,Regressionssimulator!A40*'R-square_help'!C37+'R-square_help'!B37) -> 7
A41: 40 | B41: =IF($G$6="Ingen", 'R-square_help'!A38,Regressionssimulator!A41*'R-square_help'!C38+'R-square_help'!B38) -> 81
A42: 45 | B42: =IF($G$6="Ingen", 'R-square_help'!A39,Regressionssimulator!A42*'R-square_help'!C39+'R-square_help'!B39) -> 1
A43: 82 | B43: =IF($G$6="Ingen", 'R-square_help'!A40,Regressionssimulator!A43*'R-square_help'!C40+'R-square_help'!B40) -> 85
A44: 54 | B44: =IF($G$6="Ingen", 'R-square_help'!A41,Regressionssimulator!A44*'R-square_help'!C41+'R-square_help'!B41) -> 61
A45: 36 | B45: =IF($G$6="Ingen", 'R-square_help'!A42,Regressionssimulator!A45*'R-square_help'!C42+'R-square_help'!B42) -> 91
A46: 43 | B46: =IF($G$6="Ingen", 'R-square_help'!A43,Regressionssimulator!A46*'R-square_help'!C43+'R-square_help'!B43) -> 80
A47: 63 | B47: =IF($G$6="Ingen", 'R-square_help'!A44,Regressionssimulator!A47*'R-square_help'!C44+'R-square_help'!B44) -> 24
A48: 53 | B48: =IF($G$6="Ingen", 'R-square_help'!A45,Regressionssimulator!A48*'R-square_help'!C45+'R-square_help'!B45) -> 46
A49: 57 | B49: =IF($G$6="Ingen", 'R-square_help'!A46,Regressionssimulator!A49*'R-square_help'!C46+'R-square_help'!B46) -> 97
A50: 46 | B50: =IF($G$6="Ingen", 'R-square_help'!A47,Regressionssimulator!A50*'R-square_help'!C47+'R-square_help'!B47) -> 11
A51: 68 | B51: =IF($G$6="Ingen", 'R-square_help'!A48,Regressionssimulator!A51*'R-square_help'!C48+'R-square_help'!B48) -> 77
A52: 19 | B52: =IF($G$6="Ingen", 'R-square_help'!A49,Regressionssimulator!A52*'R-square_help'!C49+'R-square_help'!B49) -> 98
A53: 64 | B53: =IF($G$6="Ingen", 'R-square_help'!A50,Regressionssimulator!A53*'R-square_help'!C50+'R-square_help'!B50) -> 22
A54: 70 | B54: =IF($G$6="Ingen", 'R-square_help'!A51,Regressionssimulator!A54*'R-square_help'!C51+'R-square_help'!B51) -> 40
A55: 9 | B55: =IF($G$6="Ingen", 'R-square_help'!A52,Regressionssimulator!A55*'R-square_help'!C52+'R-square_help'!B52) -> 90
A56: 58 | B56: =IF($G$6="Ingen", 'R-square_help'!A53,Regressionssimulator!A56*'R-square_help'!C53+'R-square_help'!B53) -> 83
A57: 63 | B57: =IF($G$6="Ingen", 'R-square_help'!A54,Regressionssimulator!A57*'R-square_help'!C54+'R-square_help'!B54) -> 86
A58: 12 | B58: =IF($G$6="Ingen", 'R-square_help'!A55,Regressionssimulator!A58*'R-square_help'!C55+'R-square_help'!B55) -> 11
A59: 96 | B59: =IF($G$6="Ingen", 'R-square_help'!A56,Regressionssimulator!A59*'R-square_help'!C56+'R-square_help'!B56) -> 34
A60: 86 | B60: =IF($G$6="Ingen", 'R-square_help'!A57,Regressionssimulator!A60*'R-square_help'!C57+'R-square_help'!B57) -> 93
A61: 96 | B61: =IF($G$6="Ingen", 'R-square_help'!A58,Regressionssimulator!A61*'R-square_help'!C58+'R-square_help'!B58) -> 37
A62: 90 | B62: =IF($G$6="Ingen", 'R-square_help'!A59,Regressionssimulator!A62*'R-square_help'!C59+'R-square_help'!B59) -> 68
A63: 79 | B63: =IF($G$6="Ingen", 'R-square_help'!A60,Regressionssimulator!A63*'R-square_help'!C60+'R-square_help'!B60) -> 0
A64: 78 | B64: =IF($G$6="Ingen", 'R-square_help'!A61,Regressionssimulator!A64*'R-square_help'!C61+'R-square_help'!B61) -> 83
A65: 63 | B65: =IF($G$6="Ingen", 'R-square_help'!A62,Regressionssimulator!A65*'R-square_help'!C62+'R-square_help'!B62) -> 43
A66: 51 | B66: =IF($G$6="Ingen", 'R-square_help'!A63,Regressionssimulator!A66*'R-square_help'!C63+'R-square_help'!B63) -> 1
A67: 44 | B67: =IF($G$6="Ingen", 'R-square_help'!A64,Regressionssimulator!A67*'R-square_help'!C64+'R-square_help'!B64) -> 69
A68: 48 | B68: =IF($G$6="Ingen", 'R-square_help'!A65,Regressionssimulator!A68*'R-square_help'!C65+'R-square_help'!B65) -> 76
A69: 52 | B69: =IF($G$6="Ingen", 'R-square_help'!A66,Regressionssimulator!A69*'R-square_help'!C66+'R-square_help'!B66) -> 91
A70: =RANDBETWEEN(0,100) -> 89 | B70: =IF($G$6="Ingen", 'R-square_help'!A67,Regressionssimulator!A70*'R-square_help'!C67+'R-square_help'!B67) -> 18
A71: 86 | B71: =IF($G$6="Ingen", 'R-square_help'!A68,Regressionssimulator!A71*'R-square_help'!C68+'R-square_help'!B68) -> 9
A72: 94 | B72: =IF($G$6="Ingen", 'R-square_help'!A69,Regressionssimulator!A72*'R-square_help'!C69+'R-square_help'!B69) -> 67
A73: 20 | B73: =IF($G$6="Ingen", 'R-square_help'!A70,Regressionssimulator!A73*'R-square_help'!C70+'R-square_help'!B70) -> 89
A74: 79 | B74: =IF($G$6="Ingen", 'R-square_help'!A71,Regressionssimulator!A74*'R-square_help'!C71+'R-square_help'!B71) -> 38
A75: 59 | B75: =IF($G$6="Ingen", 'R-square_help'!A72,Regressionssimulator!A75*'R-square_help'!C72+'R-square_help'!B72) -> 88
A76: 42 | B76: =IF($G$6="Ingen", 'R-square_help'!A73,Regressionssimulator!A76*'R-square_help'!C73+'R-square_help'!B73) -> 30
A77: 58 | B77: =IF($G$6="Ingen", 'R-square_help'!A74,Regressionssimulator!A77*'R-square_help'!C74+'R-square_help'!B74) -> 67
A78: 59 | B78: =IF($G$6="Ingen", 'R-square_help'!A75,Regressionssimulator!A78*'R-square_help'!C75+'R-square_help'!B75) -> 36
A79: 99 | B79: =IF($G$6="Ingen", 'R-square_help'!A76,Regressionssimulator!A79*'R-square_help'!C76+'R-square_help'!B76) -> 66
A80: 95 | B80: =IF($G$6="Ingen", 'R-square_help'!A77,Regressionssimulator!A80*'R-square_help'!C77+'R-square_help'!B77) -> 71
A81: 27 | B81: =IF($G$6="Ingen", 'R-square_help'!A78,Regressionssimulator!A81*'R-square_help'!C78+'R-square_help'!B78) -> 96
A82: 12 | B82: =IF($G$6="Ingen", 'R-square_help'!A79,Regressionssimulator!A82*'R-square_help'!C79+'R-square_help'!B79) -> 82
A83: 76 | B83: =IF($G$6="Ingen", 'R-square_help'!A80,Regressionssimulator!A83*'R-square_help'!C80+'R-square_help'!B80) -> 33
A84: 69 | B84: =IF($G$6="Ingen", 'R-square_help'!A81,Regressionssimulator!A84*'R-square_help'!C81+'R-square_help'!B81) -> 77
A85: 46 | B85: =IF($G$6="Ingen", 'R-square_help'!A82,Regressionssimulator!A85*'R-square_help'!C82+'R-square_help'!B82) -> 96
A86: 1 | B86: =IF($G$6="Ingen", 'R-square_help'!A83,Regressionssimulator!A86*'R-square_help'!C83+'R-square_help'!B83) -> 7
A87: 34 | B87: =IF($G$6="Ingen", 'R-square_help'!A84,Regressionssimulator!A87*'R-square_help'!C84+'R-square_help'!B84) -> 85
A88: 19 | B88: =IF($G$6="Ingen", 'R-square_help'!A85,Regressionssimulator!A88*'R-square_help'!C85+'R-square_help'!B85) -> 7
A89: 2 | B89: =IF($G$6="Ingen", 'R-square_help'!A86,Regressionssimulator!A89*'R-square_help'!C86+'R-square_help'!B86) -> 74
A90: 66 | B90: =IF($G$6="Ingen", 'R-square_help'!A87,Regressionssimulator!A90*'R-square_help'!C87+'R-square_help'!B87) -> 70
A91: 45 | B91: =IF($G$6="Ingen", 'R-square_help'!A88,Regressionssimulator!A91*'R-square_help'!C88+'R-square_help'!B88) -> 69
A92: 40 | B92: =IF($G$6="Ingen", 'R-square_help'!A89,Regressionssimulator!A92*'R-square_help'!C89+'R-square_help'!B89) -> 97
A93: 70 | B93: =IF($G$6="Ingen", 'R-square_help'!A90,Regressionssimulator!A93*'R-square_help'!C90+'R-square_help'!B90) -> 2
A94: 18 | B94: =IF($G$6="Ingen", 'R-square_help'!A91,Regressionssimulator!A94*'R-square_help'!C91+'R-square_help'!B91) -> 90
A95: 43 | B95: =IF($G$6="Ingen", 'R-square_help'!A92,Regressionssimulator!A95*'R-square_help'!C92+'R-square_help'!B92) -> 33
A96: 51 | B96: =IF($G$6="Ingen", 'R-square_help'!A93,Regressionssimulator!A96*'R-square_help'!C93+'R-square_help'!B93) -> 4
A97: 48 | B97: =IF($G$6="Ingen", 'R-square_help'!A94,Regressionssimulator!A97*'R-square_help'!C94+'R-square_help'!B94) -> 33
A98: 21 | B98: =IF($G$6="Ingen", 'R-square_help'!A95,Regressionssimulator!A98*'R-square_help'!C95+'R-square_help'!B95) -> 100
A99: 93 | B99: =IF($G$6="Ingen", 'R-square_help'!A96,Regressionssimulator!A99*'R-square_help'!C96+'R-square_help'!B96) -> 79
A100: 61 | B100: =IF($G$6="Ingen", 'R-square_help'!A97,Regressionssimulator!A100*'R-square_help'!C97+'R-square_help'!B97) -> 60
A101: 19 | B101: =IF($G$6="Ingen", 'R-square_help'!A98,Regressionssimulator!A101*'R-square_help'!C98+'R-square_help'!B98) -> 17
A102: 45 | B102: =IF($G$6="Ingen", 'R-square_help'!A99,Regressionssimulator!A102*'R-square_help'!C99+'R-square_help'!B99) -> 15
A103: 58 | B103: =IF($G$6="Ingen", 'R-square_help'!A100,Regressionssimulator!A103*'R-square_help'!C100+'R-square_help'!B100) -> 12
A104: 4 | B104: =IF($G$6="Ingen", 'R-square_help'!A101,Regressionssimulator!A104*'R-square_help'!C101+'R-square_help'!B101) -> 20

Sheet R-square_help (hidden)
A1: Random | B1: Skæring | C1: Hældning | F1: Skæring | G1: Hældning
A2: =RANDBETWEEN(0,100) -> 82 | B2: =RANDBETWEEN($F$2,$F$3) ->  | C2: =RANDBETWEEN($G$2,$G$3)/100 -> 0.93 | F2: =VLOOKUP(Regressionssimulator!$G$6,'R-square_help'!$F$8:$G$11,2,FALSE) ->  | G2: =IF(Regressionssimulator!$G$6="Perfekt",100,90) -> 90
A3: =RANDBETWEEN(0,100) -> 97 | B3: =RANDBETWEEN($F$2,$F$3) ->  | C3: =RANDBETWEEN($G$2,$G$3)/100 -> 0.94 | F3: 100 | G3: 100
A4: 4 | C4: 0.9
A5: 67 | C5: 0.91
A6: 73 | C6: 1
A7: 14 | C7: 0.96 | F7: Ingen | G7: 0
A8: 96 | C8: 0.95 | F8: Svag | G8: -40
A9: 21 | C9: 0.97 | F9: Moderat | G9: 50
A10: 45 | C10: 0.97 | F10: Stærk | G10: 90
A11: 63 | C11: 0.98 | F11: Perfekt | G11: 100
A12: 8 | C12: 1
A13: 43 | C13: 0.98
A14: 95 | C14: 0.98
A15: 78 | C15: 1
A16: 94 | C16: 0.91
A17: 44 | C17: 0.91
A18: 51 | C18: 0.91
A19: 39 | C19: 0.91
A20: 11 | C20: 1
A21: 62 | C21: 0.94
A22: 0 | C22: 0.98
A23: 74 | C23: 1
A24: 18 | C24: 0.97
A25: 29 | C25: 0.99
A26: 16 | C26: 0.9
A27: 30 | C27: 0.95
A28: 78 | C28: 1
A29: 52 | C29: 0.93
A30: 92 | C30: 0.97
A31: 76 | C31: 0.96
A32: 43 | C32: 0.92
A33: 48 | C33: 0.91
A34: 49 | C34: 1
A35: 97 | C35: 0.98
A36: 70 | C36: 0.91
A37: 7 | C37: 0.96
A38: 81 | C38: 0.97
A39: 1 | C39: 0.98
A40: 85 | C40: 0.97
A41: 61 | C41: 0.94
A42: 91 | C42: 1
A43: 80 | C43: 0.99
A44: 24 | C44: 0.93
A45: 46 | C45: 0.93
A46: 97 | C46: 0.98
A47: 11 | C47: 0.92
A48: 77 | C48: 0.98
A49: 98 | C49: 0.99
A50: 22 | C50: 0.98
A51: 40 | C51: 0.98
A52: 90 | C52: 0.92
A53: 83 | C53: 0.95
A54: 86 | C54: 0.9
A55: 11 | C55: 0.93
A56: 34 | C56: 0.95
A57: 93 | C57: 0.96
A58: 37 | C58: 0.94
A59: 68 | C59: 0.96
A60: 0 | C60: 0.96
A61: 83 | C61: 0.9
A62: 43 | C62: 1
A63: 1 | C63: 0.96
A64: 69 | C64: 0.96
A65: 76 | C65: 0.9
A66: 91 | C66: 0.97
A67: =RANDBETWEEN(0,100) -> 18 | B67: =RANDBETWEEN($F$2,$F$3) ->  | C67: =RANDBETWEEN($G$2,$G$3)/100 -> 0.91
A68: 9 | C68: 0.95
A69: 67 | C69: 0.92
A70: 89 | C70: 0.99
A71: 38 | C71: 0.92
A72: 88 | C72: 0.94
A73: 30 | C73: 0.96
A74: 67 | C74: 0.98
A75: 36 | C75: 0.97
A76: 66 | C76: 1
A77: 71 | C77: 0.99
A78: 96 | C78: 0.93
A79: 82 | C79: 0.9
A80: 33 | C80: 0.97
A81: 77 | C81: 0.99
A82: 96 | C82: 1
A83: 7 | C83: 0.96
A84: 85 | C84: 0.94
A85: 7 | C85: 0.99
A86: 74 | C86: 0.99
A87: 70 | C87: 0.94
A88: 69 | C88: 0.92
A89: 97 | C89: 0.97
A90: 2 | C90: 0.96
A91: 90 | C91: 0.91
A92: 33 | C92: 0.95
A93: 4 | C93: 0.96
A94: 33 | C94: 0.99
A95: 100 | C95: 0.94
A96: 79 | C96: 0.93
A97: 60 | C97: 0.97
A98: 17 | C98: 0.9
A99: 15 | C99: 0.97
A100: 12 | C100: 0.97
A101: 20 | C101: 1
